Workbook

Sheet Introduction
B5: EduPulse Hub
B6: Parent-Teacher Meeting & School Profitability Tool
B9: ✔️ Student Performance = Financial Growth (Tab: Student Level)
B10: Rank among peers via Gauge Chart, subject-wise marks, Attendance and fee status (paid/outstanding in Pie Chart).
B11: Historical comparisons with year-wise and subject-wise filters.
B12: Easy navigation between students.
B15: ✔️ Real-time Dashboards Linking Academic Excellence to Enrollment & Revenue Surges (Tab: Owner's View)
B16: Student inflow/outflow tracking with Fee income vs. loss.
B17: Teacher salary vs. subject performance to ensure resources are supporting strong results.
B18: Gender-based performance analysis.
B19: Year-over-year profitability.
B21: ✔️ All visualizations and analytics can be tailored specifically for you on request.
B23: Zubair Ahmed
B24: Owner ZESSA-Click
B25: info@zessa-click.net
B26: Karachi Pakistan +923002025579

Sheet Student level
B2: Parent Teacher Meeting view
B4: Select Year | C4: 2025
B5: Select Student | C5: Emily Johnson
B6: Grade | C6: =VLOOKUP($C4,'Graph data'!$H$13:$K$24,4,0) -> Grade 12
B28: Complete academic numerical view (Marks obtained: out of 100 per subject, total of 600)
B29: Subject | C29: 2014 | D29: 2015 | E29: 2016 | F29: 2017 | G29: 2018 | H29: 2019 | I29: 2020 | J29: 2021 | K29: 2022 | L29: 2023 | M29: 2024 | N29: 2025
B30: Math | C30: =SUMIFS(Data!$H:$H,Data!$A:$A,'Student level'!C$29,Data!$E:$E,'Student level'!$C$5,Data!$G:$G,'Student level'!$B30) -> 86 | D30: =SUMIFS(Data!$H:$H,Data!$A:$A,'Student level'!D$29,Data!$E:$E,'Student level'!$C$5,Data!$G:$G,'Student level'!$B30) -> 84 | E30: =SUMIFS(Data!$H:$H,Data!$A:$A,'Student level'!E$29,Data!$E:$E,'Student level'!$C$5,Data!$G:$G,'Student level'!$B30) -> 97 | F30: =SUMIFS(Data!$H:$H,Data!$A:$A,'Student level'!F$29,Data!$E:$E,'Student level'!$C$5,Data!$G:$G,'Student level'!$B30) -> 80 | G30: =SUMIFS(Data!$H:$H,Data!$A:$A,'Student level'!G$29,Data!$E:$E,'Student level'!$C$5,Data!$G:$G,'Student level'!$B30) -> 87 | H30: =SUMIFS(Data!$H:$H,Data!$A:$A,'Student level'!H$29,Data!$E:$E,'Student level'!$C$5,Data!$G:$G,'Student level'!$B30) -> 75 | I30: =SUMIFS(Data!$H:$H,Data!$A:$A,'Student level'!I$29,Data!$E:$E,'Student level'!$C$5,Data!$G:$G,'Student level'!$B30) -> 75 | J30: =SUMIFS(Data!$H:$H,Data!$A:$A,'Student level'!J$29,Data!$E:$E,'Student level'!$C$5,Data!$G:$G,'Student level'!$B30) -> 83 | K30: =SUMIFS(Data!$H:$H,Data!$A:$A,'Student level'!K$29,Data!$E:$E,'Student level'!$C$5,Data!$G:$G,'Student level'!$B30) -> 100 | L30: =SUMIFS(Data!$H:$H,Data!$A:$A,'Student level'!L$29,Data!$E:$E,'Student level'!$C$5,Data!$G:$G,'Student level'!$B30) -> 97 | M30: =SUMIFS(Data!$H:$H,Data!$A:$A,'Student level'!M$29,Data!$E:$E,'Student level'!$C$5,Data!$G:$G,'Student level'!$B30) -> 100 | N30: =SUMIFS(Data!$H:$H,Data!$A:$A,'Student level'!N$29,Data!$E:$E,'Student level'!$C$5,Data!$G:$G,'Student level'!$B30) -> 100
B31: Science | C31: =SUMIFS(Data!$H:$H,Data!$A:$A,'Student level'!C$29,Data!$E:$E,'Student level'!$C$5,Data!$G:$G,'Student level'!$B31) -> 75 | D31: =SUMIFS(Data!$H:$H,Data!$A:$A,'Student level'!D$29,Data!$E:$E,'Student level'!$C$5,Data!$G:$G,'Student level'!$B31) -> 98 | E31: =SUMIFS(Data!$H:$H,Data!$A:$A,'Student level'!E$29,Data!$E:$E,'Student level'!$C$5,Data!$G:$G,'Student level'!$B31) -> 100 | F31: =SUMIFS(Data!$H:$H,Data!$A:$A,'Student level'!F$29,Data!$E:$E,'Student level'!$C$5,Data!$G:$G,'Student level'!$B31) -> 77 | G31: =SUMIFS(Data!$H:$H,Data!$A:$A,'Student level'!G$29,Data!$E:$E,'Student level'!$C$5,Data!$G:$G,'Student level'!$B31) -> 83 | H31: =SUMIFS(Data!$H:$H,Data!$A:$A,'Student level'!H$29,Data!$E:$E,'Student level'!$C$5,Data!$G:$G,'Student level'!$B31) -> 92 | I31: =SUMIFS(Data!$H:$H,Data!$A:$A,'Student level'!I$29,Data!$E:$E,'Student level'!$C$5,Data!$G:$G,'Student level'!$B31) -> 75 | J31: =SUMIFS(Data!$H:$H,Data!$A:$A,'Student level'!J$29,Data!$E:$E,'Student level'!$C$5,Data!$G:$G,'Student level'!$B31) -> 93 | K31: =SUMIFS(Data!$H:$H,Data!$A:$A,'Student level'!K$29,Data!$E:$E,'Student level'!$C$5,Data!$G:$G,'Student level'!$B31) -> 75 | L31: =SUMIFS(Data!$H:$H,Data!$A:$A,'Student level'!L$29,Data!$E:$E,'Student level'!$C$5,Data!$G:$G,'Student level'!$B31) -> 78 | M31: =SUMIFS(Data!$H:$H,Data!$A:$A,'Student level'!M$29,Data!$E:$E,'Student level'!$C$5,Data!$G:$G,'Student level'!$B31) -> 78 | N31: =SUMIFS(Data!$H:$H,Data!$A:$A,'Student level'!N$29,Data!$E:$E,'Student level'!$C$5,Data!$G:$G,'Student level'!$B31) -> 83
B32: English | C32: =SUMIFS(Data!$H:$H,Data!$A:$A,'Student level'!C$29,Data!$E:$E,'Student level'!$C$5,Data!$G:$G,'Student level'!$B32) -> 88 | D32: =SUMIFS(Data!$H:$H,Data!$A:$A,'Student level'!D$29,Data!$E:$E,'Student level'!$C$5,Data!$G:$G,'Student level'!$B32) -> 91 | E32: =SUMIFS(Data!$H:$H,Data!$A:$A,'Student level'!E$29,Data!$E:$E,'Student level'!$C$5,Data!$G:$G,'Student level'!$B32) -> 82 | F32: =SUMIFS(Data!$H:$H,Data!$A:$A,'Student level'!F$29,Data!$E:$E,'Student level'!$C$5,Data!$G:$G,'Student level'!$B32) -> 93 | G32: =SUMIFS(Data!$H:$H,Data!$A:$A,'Student level'!G$29,Data!$E:$E,'Student level'!$C$5,Data!$G:$G,'Student level'!$B32) -> 81 | H32: =SUMIFS(Data!$H:$H,Data!$A:$A,'Student level'!H$29,Data!$E:$E,'Student level'!$C$5,Data!$G:$G,'Student level'!$B32) -> 88 | I32: =SUMIFS(Data!$H:$H,Data!$A:$A,'Student level'!I$29,Data!$E:$E,'Student level'!$C$5,Data!$G:$G,'Student level'!$B32) -> 80 | J32: =SUMIFS(Data!$H:$H,Data!$A:$A,'Student level'!J$29,Data!$E:$E,'Student level'!$C$5,Data!$G:$G,'Student level'!$B32) -> 83 | K32: =SUMIFS(Data!$H:$H,Data!$A:$A,'Student level'!K$29,Data!$E:$E,'Student level'!$C$5,Data!$G:$G,'Student level'!$B32) -> 88 | L32: =SUMIFS(Data!$H:$H,Data!$A:$A,'Student level'!L$29,Data!$E:$E,'Student level'!$C$5,Data!$G:$G,'Student level'!$B32) -> 90 | M32: =SUMIFS(Data!$H:$H,Data!$A:$A,'Student level'!M$29,Data!$E:$E,'Student level'!$C$5,Data!$G:$G,'Student level'!$B32) -> 83 | N32: =SUMIFS(Data!$H:$H,Data!$A:$A,'Student level'!N$29,Data!$E:$E,'Student level'!$C$5,Data!$G:$G,'Student level'!$B32) -> 98
B33: History | C33: =SUMIFS(Data!$H:$H,Data!$A:$A,'Student level'!C$29,Data!$E:$E,'Student level'!$C$5,Data!$G:$G,'Student level'!$B33) -> 85 | D33: =SUMIFS(Data!$H:$H,Data!$A:$A,'Student level'!D$29,Data!$E:$E,'Student level'!$C$5,Data!$G:$G,'Student level'!$B33) -> 88 | E33: =SUMIFS(Data!$H:$H,Data!$A:$A,'Student level'!E$29,Data!$E:$E,'Student level'!$C$5,Data!$G:$G,'Student level'!$B33) -> 88 | F33: =SUMIFS(Data!$H:$H,Data!$A:$A,'Student level'!F$29,Data!$E:$E,'Student level'!$C$5,Data!$G:$G,'Student level'!$B33) -> 88 | G33: =SUMIFS(Data!$H:$H,Data!$A:$A,'Student level'!G$29,Data!$E:$E,'Student level'!$C$5,Data!$G:$G,'Student level'!$B33) -> 93 | H33: =SUMIFS(Data!$H:$H,Data!$A:$A,'Student level'!H$29,Data!$E:$E,'Student level'!$C$5,Data!$G:$G,'Student level'!$B33) -> 96 | I33: =SUMIFS(Data!$H:$H,Data!$A:$A,'Student level'!I$29,Data!$E:$E,'Student level'!$C$5,Data!$G:$G,'Student level'!$B33) -> 92 | J33: =SUMIFS(Data!$H:$H,Data!$A:$A,'Student level'!J$29,Data!$E:$E,'Student level'!$C$5,Data!$G:$G,'Student level'!$B33) -> 97 | K33: =SUMIFS(Data!$H:$H,Data!$A:$A,'Student level'!K$29,Data!$E:$E,'Student level'!$C$5,Data!$G:$G,'Student level'!$B33) -> 100 | L33: =SUMIFS(Data!$H:$H,Data!$A:$A,'Student level'!L$29,Data!$E:$E,'Student level'!$C$5,Data!$G:$G,'Student level'!$B33) -> 100 | M33: =SUMIFS(Data!$H:$H,Data!$A:$A,'Student level'!M$29,Data!$E:$E,'Student level'!$C$5,Data!$G:$G,'Student level'!$B33) -> 100 | N33: =SUMIFS(Data!$H:$H,Data!$A:$A,'Student level'!N$29,Data!$E:$E,'Student level'!$C$5,Data!$G:$G,'Student level'!$B33) -> 100
B34: Geography | C34: =SUMIFS(Data!$H:$H,Data!$A:$A,'Student level'!C$29,Data!$E:$E,'Student level'!$C$5,Data!$G:$G,'Student level'!$B34) -> 76 | D34: =SUMIFS(Data!$H:$H,Data!$A:$A,'Student level'!D$29,Data!$E:$E,'Student level'!$C$5,Data!$G:$G,'Student level'!$B34) -> 80 | E34: =SUMIFS(Data!$H:$H,Data!$A:$A,'Student level'!E$29,Data!$E:$E,'Student level'!$C$5,Data!$G:$G,'Student level'!$B34) -> 77 | F34: =SUMIFS(Data!$H:$H,Data!$A:$A,'Student level'!F$29,Data!$E:$E,'Student level'!$C$5,Data!$G:$G,'Student level'!$B34) -> 92 | G34: =SUMIFS(Data!$H:$H,Data!$A:$A,'Student level'!G$29,Data!$E:$E,'Student level'!$C$5,Data!$G:$G,'Student level'!$B34) -> 89 | H34: =SUMIFS(Data!$H:$H,Data!$A:$A,'Student level'!H$29,Data!$E:$E,'Student level'!$C$5,Data!$G:$G,'Student level'!$B34) -> 77 | I34: =SUMIFS(Data!$H:$H,Data!$A:$A,'Student level'!I$29,Data!$E:$E,'Student level'!$C$5,Data!$G:$G,'Student level'!$B34) -> 89 | J34: =SUMIFS(Data!$H:$H,Data!$A:$A,'Student level'!J$29,Data!$E:$E,'Student level'!$C$5,Data!$G:$G,'Student level'!$B34) -> 91 | K34: =SUMIFS(Data!$H:$H,Data!$A:$A,'Student level'!K$29,Data!$E:$E,'Student level'!$C$5,Data!$G:$G,'Student level'!$B34) -> 82 | L34: =SUMIFS(Data!$H:$H,Data!$A:$A,'Student level'!L$29,Data!$E:$E,'Student level'!$C$5,Data!$G:$G,'Student level'!$B34) -> 86 | M34: =SUMIFS(Data!$H:$H,Data!$A:$A,'Student level'!M$29,Data!$E:$E,'Student level'!$C$5,Data!$G:$G,'Student level'!$B34) -> 91 | N34: =SUMIFS(Data!$H:$H,Data!$A:$A,'Student level'!N$29,Data!$E:$E,'Student level'!$C$5,Data!$G:$G,'Student level'!$B34) -> 96
B35: Computer | C35: =SUMIFS(Data!$H:$H,Data!$A:$A,'Student level'!C$29,Data!$E:$E,'Student level'!$C$5,Data!$G:$G,'Student level'!$B35) -> 94 | D35: =SUMIFS(Data!$H:$H,Data!$A:$A,'Student level'!D$29,Data!$E:$E,'Student level'!$C$5,Data!$G:$G,'Student level'!$B35) -> 85 | E35: =SUMIFS(Data!$H:$H,Data!$A:$A,'Student level'!E$29,Data!$E:$E,'Student level'!$C$5,Data!$G:$G,'Student level'!$B35) -> 86 | F35: =SUMIFS(Data!$H:$H,Data!$A:$A,'Student level'!F$29,Data!$E:$E,'Student level'!$C$5,Data!$G:$G,'Student level'!$B35) -> 94 | G35: =SUMIFS(Data!$H:$H,Data!$A:$A,'Student level'!G$29,Data!$E:$E,'Student level'!$C$5,Data!$G:$G,'Student level'!$B35) -> 82 | H35: =SUMIFS(Data!$H:$H,Data!$A:$A,'Student level'!H$29,Data!$E:$E,'Student level'!$C$5,Data!$G:$G,'Student level'!$B35) -> 84 | I35: =SUMIFS(Data!$H:$H,Data!$A:$A,'Student level'!I$29,Data!$E:$E,'Student level'!$C$5,Data!$G:$G,'Student level'!$B35) -> 87 | J35: =SUMIFS(Data!$H:$H,Data!$A:$A,'Student level'!J$29,Data!$E:$E,'Student level'!$C$5,Data!$G:$G,'Student level'!$B35) -> 99 | K35: =SUMIFS(Data!$H:$H,Data!$A:$A,'Student level'!K$29,Data!$E:$E,'Student level'!$C$5,Data!$G:$G,'Student level'!$B35) -> 88 | L35: =SUMIFS(Data!$H:$H,Data!$A:$A,'Student level'!L$29,Data!$E:$E,'Student level'!$C$5,Data!$G:$G,'Student level'!$B35) -> 100 | M35: =SUMIFS(Data!$H:$H,Data!$A:$A,'Student level'!M$29,Data!$E:$E,'Student level'!$C$5,Data!$G:$G,'Student level'!$B35) -> 97 | N35: =SUMIFS(Data!$H:$H,Data!$A:$A,'Student level'!N$29,Data!$E:$E,'Student level'!$C$5,Data!$G:$G,'Student level'!$B35) -> 99
B36: Total | C36: =SUM(C30:C35) -> 504 | D36: =SUM(D30:D35) -> 526 | E36: 530 | F36: 524 | G36: 515 | H36: 512 | I36: 498 | J36: 546 | K36: 533 | L36: 551 | M36: 549 | N36: 576

Sheet Owners view
B2: School level Performance
B4: Select Year | C4: 2024
C6: Profit & Loss: Selected Year vs Last Year

Sheet Graph data (hidden)
A1: Year | B1: ='Student level'!C4 -> 2025 | C1: Linked to Student Level tab | I1: 100 | J1: 246 | AK1: Year linked to Owners view | BY1: Year | BZ1: Jul- Jun | CB1: Short | CC1: Last month | CD1: Long | CE1: Month # | CF1: Last date | CG1: Last 2 words | CH1: Vlookup # | CI1: Terms
H2: Student | I2: ='Student level'!C5 -> Emily Johnson | AL2: ='Owners view'!C4 -> 2024 | AP2: Student Fee | BY2: 2010 | BZ2: 2010-11 | CB2: Jan | CD2: January | CE2: 1 | CF2: 31 | CG2: st | CH2: 5 | CI2: Mid Term | CO2: 246
AK3: Teachers | AL3: Expert in | AM3: Salary | AN3: Marks | AP3: Period | AQ3: Year | AR3: Monthy | AS3: Annual | AT3: No of Students | AU3: Total student FEE | AW3: 12 | BY3: 2011 | BZ3: 2011-12 | CB3: Feb | CC3: Jan | CD3: February | CE3: 2 | CG3: th | CH3: 6 | CI3: Final Term | CO3: 2014 | CR3: =MAX(CR5:CR250) -> 159
A4: Average Marks by Subject | E4: Subject | F4: Marks | H4: Subject | I4: Marks | J4: =H4 -> Subject | K4: Service Level | L4: Blank | M4: Lower Cap | N4: Upper Cap | O4: Middle Line1 | P4: Middle Line2 | R4: Graph Rank among all students | Z4: Attendence | AF4: Band | AG4: Male | AH4: Female | AK4: Emily Parker | AL4: Computer | AM4: =_xlfn.MAXIFS(Data!L:L,Data!J:J,'Graph data'!AK4,Data!A:A,'Graph data'!$AL$2) -> 75,125 | AN4: =SUMIFS(Data!H:H,Data!A:A,'Graph data'!$AL$2,Data!G:G,'Graph data'!AL4)/2 -> 8,664 | AP4: Jan to Dec | AQ4: 2014 | AR4: 4,300 | AS4: =AR4*12 -> 51,600 | AT4: 246 | AU4: =AS4*AT4 -> 12,693,600 | AX4: Student Addition/loss | BR4: Percentage of Revenue | BY4: 2012 | BZ4: 2012-13 | CB4: Mar | CC4: Feb | CD4: March | CE4: 3 | CF4: 31 | CG4: st | CH4: 7 | CK4: Code | CL4: Year | CM4: Student | CN4: Gendar | CO4: Marks | CP4: % | CQ4: Rank | CR4: To Attend | CS4: Attended | CT4: Difference | CU4: Remark
E5: Math | F5: 66 | H5: Math | I5: =SUMIFS(Data!H:H,Data!A:A,'Graph data'!$B$1,Data!E:E,'Graph data'!$I$2,Data!G:G,'Graph data'!J5) -> 100 | J5: =H5 -> Math | K5: =I5/$I$1 -> 100% | L5: =1-K5 -> 0% | M5: 15% | N5: 10% | O5: 5% | P5: 2% | S5: Rank | T5: out of | AA5: Target | AB5: Attended | AC5: Missed | AE5: 0.9 | AF5: >90% | AG5: =COUNTIFS($CN$5:$CN$2956,"Male",$CP$5:$CP$2956,">0.9",$CL$5:$CL$2956,$AY$20) -> 7 | AH5: =COUNTIFS($CN$5:$CN$2956,"Female",$CP$5:$CP$2956,">0.9",$CL$5:$CL$2956,$AY$20) -> 5 | AK5: Sarah Clark | AL5: English | AM5: =_xlfn.MAXIFS(Data!L:L,Data!J:J,'Graph data'!AK5,Data!A:A,'Graph data'!$AL$2) -> 50,978 | AN5: =SUMIFS(Data!H:H,Data!A:A,'Graph data'!$AL$2,Data!G:G,'Graph data'!AL5)/2 -> 8,632 | AP5: Jan to Dec | AQ5: 2015 | AR5: 4,500 | AS5: =AR5*12 -> 54,000 | AT5: 246 | AU5: =AS5*AT5 -> 13,284,000 | AX5: Year | AY5: Student Addition | AZ5: Money + '000 | BA5: Student Left | BB5: Money loss '000 | BF5: Period | BG5: Year | BH5: Revenue | BI5: Teachers Salaries | BJ5: Operating Expenses | BK5: Other Expenses | BL5: Profit | BM5: Previous Year reserve | BN5: Total revenue | BO5: Owners Withdrawal | BP5: Reserve | BR5: Teachers Salaries | BS5: Operating Expenses | BT5: Other Expenses | BU5: Owner's withdrawal | BY5: 2013 | BZ5: 2013-14 | CB5: Apr | CC5: Mar | CD5: April | CE5: 4 | CF5: 30 | CG5: th | CH5: 8 | CK5: 00001 | CL5: 2014 | CM5: James Wilson | CN5: Male | CO5: 537 | CP5: =CO5/600 -> 90% | CQ5: 3 | CR5: 159 | CS5: 148 | CT5: 11
E6: Science | F6: 66 | H6: Science | I6: =SUMIFS(Data!H:H,Data!A:A,'Graph data'!$B$1,Data!E:E,'Graph data'!$I$2,Data!G:G,'Graph data'!J6) -> 83 | J6: Science | K6: =I6/$I$1 -> 83% | L6: =1-K6 -> 17% | M6: 15% | N6: 10% | O6: 5% | P6: 2% | R6: Total Students | S6: =SUMIFS($CQ$5:$CQ$2956,$CL$5:$CL$2956,$B$1,$CM$5:$CM$2956,$I$2) -> 1 | T6: 246 | V6: =S7&" "&T5& " "&T7 -> 1st out of 246th | AA6: =SUMIFS($CR$5:$CR$2956,$CL$5:$CL$2956,$B$1,$CM$5:$CM$2956,$I$2) -> 83 | AB6: =SUMIFS($CS$5:$CS$2956,$CL$5:$CL$2956,$B$1,$CM$5:$CM$2956,$I$2) -> 79 | AC6: =SUMIFS($CT$5:$CT$2956,$CL$5:$CL$2956,$B$1,$CM$5:$CM$2956,$I$2) -> 4 | AE6: 0.75 | AF6: 75%-90% | AG6: =COUNTIFS($CN$5:$CN$2956,"Male",$CP$5:$CP$2956,">0.75",$CP$5:$CP$2956,"<=0.9",$CL$5:$CL$2956,$AY$20) -> 18 | AH6: =COUNTIFS($CN$5:$CN$2956,"Female",$CP$5:$CP$2956,">0.75",$CP$5:$CP$2956,"<=0.9",$CL$5:$CL$2956,$AY$20) -> 20 | AK6: James Wilson | AL6: Geography | AM6: =_xlfn.MAXIFS(Data!L:L,Data!J:J,'Graph data'!AK6,Data!A:A,'Graph data'!$AL$2) -> 53,661 | AN6: =SUMIFS(Data!H:H,Data!A:A,'Graph data'!$AL$2,Data!G:G,'Graph data'!AL6)/2 -> 8,526 | AP6: Jan to Dec | AQ6: 2016 | AR6: 4,700 | AS6: 56,400 | AT6: 246 | AU6: 13,874,400 | AX6: 2015 | AY6: 60 | AZ6: =BB6/BA6*AY6 -> 214 | BA6: 49 | BB6: 175 | BF6: Jan to Dec | BG6: 2,014 | BH6: 12,693,600 | BI6: 6,160,000 | BJ6: =(BH6*18%)-1 -> 2,284,847 | BK6: =BJ6*23% -> 525,515 | BL6: =+BH6-BI6-BJ6-BK6 -> 3,723,238 | BN6: =BL6+BM6 -> 3,723,238 | BO6: =BN6*75% -> 2,792,429 | BP6: =BL6-BO6 -> 930,810 | BR6: =BI6/$BH6 -> 49% | BS6: 18% | BT6: 4% | BU6: =BO6/BH6 -> 22% | BY6: 2014 | BZ6: 2014-15 | CB6: May | CC6: Apr | CD6: May | CE6: 5 | CF6: 31 | CG6: st | CH6: 9 | CK6: 00002 | CL6: 2014 | CM6: Emily Johnson | CN6: Female | CO6: 498 | CP6: =CO6/600 -> 83% | CQ6: 12 | CR6: 159 | CS6: 150 | CT6: 9 | CU6: 0
E7: English | F7: 67 | H7: English | I7: =SUMIFS(Data!H:H,Data!A:A,'Graph data'!$B$1,Data!E:E,'Graph data'!$I$2,Data!G:G,'Graph data'!J7) -> 98 | J7: English | K7: 98% | L7: 2% | M7: 15% | N7: 10% | O7: 5% | P7: 2% | S7: =S6 & IF(OR(MOD(S6,100)=11, MOD(S6,100)=12, MOD(S6,100)=13), "th", IF(MOD(S6,10)=1, "st", IF(MOD(S6,10)=2, "nd", IF(MOD(S6,10)=3, "rd", "th")))) -> 1st | T7: =T6 & IF(OR(MOD(T6,100)=11, MOD(T6,100)=12, MOD(T6,100)=13), "th", IF(MOD(T6,10)=1, "st", IF(MOD(T6,10)=2, "nd", IF(MOD(T6,10)=3, "rd", "th")))) -> 246th | AE7: 0.5 | AF7: 50%-75% | AG7: =COUNTIFS($CN$5:$CN$2956,"Male",$CP$5:$CP$2956,">0.5",$CP$5:$CP$2956,"<=0.75",$CL$5:$CL$2956,$AY$20) -> 96 | AH7: =COUNTIFS($CN$5:$CN$2956,"Female",$CP$5:$CP$2956,">0.5",$CP$5:$CP$2956,"<=0.75",$CL$5:$CL$2956,$AY$20) -> 92 | AK7: Michael Brown | AL7: History | AM7: =_xlfn.MAXIFS(Data!L:L,Data!J:J,'Graph data'!AK7,Data!A:A,'Graph data'!$AL$2) -> 53,800 | AN7: =SUMIFS(Data!H:H,Data!A:A,'Graph data'!$AL$2,Data!G:G,'Graph data'!AL7)/2 -> 8,618 | AP7: Jan to Dec | AQ7: 2017 | AR7: 5,000 | AS7: 60,000 | AT7: 246 | AU7: 14,760,000 | AX7: 2016 | AY7: 50 | AZ7: =BB7/BA7*AY7 -> 168 | BA7: 98 | BB7: 330 | BF7: Jan to Dec | BG7: 2,015 | BH7: 13,284,000 | BI7: 6,468,000 | BJ7: =(BH7*19%)-1 -> 2,523,959 | BK7: =BJ7*24% -> 605,750 | BL7: =+BH7-BI7-BJ7-BK7 -> 3,686,291 | BM7: =BP6 -> 930,810 | BN7: =BL7+BM7 -> 4,617,100 | BO7: =BN7*75% -> 3,462,825 | BP7: =BN7-BO7 -> 1,154,275 | BR7: 49% | BS7: 19% | BT7: 5% | BU7: =BO7/BH7 -> 26% | BY7: 2015 | BZ7: 2015-16 | CB7: Jun | CC7: May | CD7: June | CE7: 6 | CF7: 30 | CG7: th | CH7: 10 | CK7: 00003 | CL7: 2014 | CM7: Michael Brown | CN7: Male | CO7: 519 | CP7: 87% | CQ7: 9 | CR7: 159 | CS7: 150 | CT7: 9 | CU7: 0
E8: History | F8: 66 | H8: History | I8: =SUMIFS(Data!H:H,Data!A:A,'Graph data'!$B$1,Data!E:E,'Graph data'!$I$2,Data!G:G,'Graph data'!J8) -> 100 | J8: History | K8: 100% | L8: =1-K8 -> 0% | M8: 15% | N8: 10% | O8: 5% | P8: 2% | AF8: <50% | AG8: =COUNTIFS($CN$5:$CN$2956,"Male",$CP$5:$CP$2956,"<=0.5",$CL$5:$CL$2956,$AY$20) -> 5 | AH8: =COUNTIFS($CN$5:$CN$2956,"Female",$CP$5:$CP$2956,"<=0.5",$CL$5:$CL$2956,$AY$20) -> 3 | AK8: Robert Jones | AL8: Math | AM8: =_xlfn.MAXIFS(Data!L:L,Data!J:J,'Graph data'!AK8,Data!A:A,'Graph data'!$AL$2) -> 53,200 | AN8: =SUMIFS(Data!H:H,Data!A:A,'Graph data'!$AL$2,Data!G:G,'Graph data'!AL8)/2 -> 8,540 | AP8: Jan to Dec | AQ8: 2018 | AR8: 5,200 | AS8: 62,400 | AT8: 246 | AU8: 15,350,400 | AX8: 2017 | AY8: 78 | AZ8: 253 | BA8: 112 | BB8: 363 | BF8: Jan to Dec | BG8: 2,016 | BH8: 13,874,400 | BI8: 6,662,040 | BJ8: =(BH8*17%)-1 -> 2,358,647 | BK8: =BJ8*23% -> 542,489 | BL8: 4,311,224 | BM8: =BP7 -> 1,154,275 | BN8: 5,465,499 | BO8: =BN8*75% -> 4,099,124 | BP8: =BN8-BO8 -> 1,366,375 | BR8: 48% | BS8: 17% | BT8: 4% | BU8: 30% | BY8: 2016 | BZ8: 2016-17 | CB8: Jul | CC8: Jun | CD8: July | CE8: 7 | CF8: 31 | CG8: st | CH8: 11 | CK8: 00004 | CL8: 2014 | CM8: Sarah Davis | CN8: Female | CO8: 517 | CP8: 86% | CQ8: 10 | CR8: 159 | CS8: 153 | CT8: 6 | CU8: 0
E9: Geography | F9: 65 | H9: Geography | I9: =SUMIFS(Data!H:H,Data!A:A,'Graph data'!$B$1,Data!E:E,'Graph data'!$I$2,Data!G:G,'Graph data'!J9) -> 96 | J9: Geography | K9: 96% | L9: 4% | M9: 15% | N9: 10% | O9: 5% | P9: 2% | S9: =S6/T6 -> 0% | T9: =200%-S9-U9 -> 198% | U9: 2% | AF9: Total | AG9: =SUM(AG5:AG8) -> 126 | AH9: =SUM(AH5:AH8) -> 120 | AK9: David Taylor | AL9: Science | AM9: =_xlfn.MAXIFS(Data!L:L,Data!J:J,'Graph data'!AK9,Data!A:A,'Graph data'!$AL$2) -> 57,686 | AN9: =SUMIFS(Data!H:H,Data!A:A,'Graph data'!$AL$2,Data!G:G,'Graph data'!AL9)/2 -> 8,631 | AP9: Jan to Dec | AQ9: 2019 | AR9: 5,450 | AS9: 65,400 | AT9: 246 | AU9: 16,088,400 | AX9: 2018 | AY9: 60 | AZ9: 212 | BA9: 140 | BB9: 495 | BF9: Jan to Dec | BG9: 2,017 | BH9: 14,760,000 | BI9: 6,928,522 | BJ9: =(BH9*16%)-1 -> 2,361,599 | BK9: =BJ9*25% -> 590,400 | BL9: 4,879,479 | BM9: 1,366,375 | BN9: 6,245,854 | BO9: 4,684,391 | BP9: 1,561,464 | BR9: 47% | BS9: 16% | BT9: 4% | BU9: 32% | BY9: 2017 | BZ9: 2017-18 | CB9: Aug | CC9: Jul | CD9: August | CE9: 8 | CF9: 31 | CG9: st | CH9: 12 | CK9: 00005 | CL9: 2014 | CM9: Robert Jones | CN9: Male | CO9: 523 | CP9: 87% | CQ9: 8 | CR9: 159 | CS9: 150 | CT9: 9 | CU9: 0
E10: Computer | F10: 66 | H10: Computer | I10: =SUMIFS(Data!H:H,Data!A:A,'Graph data'!$B$1,Data!E:E,'Graph data'!$I$2,Data!G:G,'Graph data'!J10) -> 99 | J10: Computer | K10: 99% | L10: 1% | M10: 15% | N10: 10% | O10: 5% | P10: 2% | AG10: Total M | AH10: Total F | AK10: Jennifer Miller | AL10: Computer | AM10: =_xlfn.MAXIFS(Data!L:L,Data!J:J,'Graph data'!AK10,Data!A:A,'Graph data'!$AL$2) -> 67,076 | AN10: =SUMIFS(Data!H:H,Data!A:A,'Graph data'!$AL$2,Data!G:G,'Graph data'!AL10)/2 -> 8,664 | AP10: Jan to Dec | AQ10: 2020 | AR10: 6,300 | AS10: 75,600 | AT10: 246 | AU10: 18,597,600 | AX10: 2019 | AY10: 40 | AZ10: 115 | BA10: 63 | BB10: 181 | BF10: Jan to Dec | BG10: 2,018 | BH10: 15,350,400 | BI10: 6,997,807 | BJ10: =(BH10*17%)-1 -> 2,609,567 | BK10: =BJ10*27% -> 704,583 | BL10: 5,038,443 | BM10: 1,561,464 | BN10: 6,599,906 | BO10: 4,949,930 | BP10: 1,649,977 | BR10: 46% | BS10: 17% | BT10: 5% | BU10: 32% | BY10: 2018 | BZ10: 2018-19 | CB10: Sep | CC10: Aug | CD10: September | CE10: 9 | CF10: 30 | CG10: th | CH10: 13 | CK10: 00006 | CL10: 2014 | CM10: Jessica Miller | CN10: Female | CO10: 535 | CP10: 89% | CQ10: 6 | CR10: 159 | CS10: 151 | CT10: 8 | CU10: 0
R11: Performance Level | T11: Amount Labels | AK11: Christopher Lee | AL11: English | AM11: =_xlfn.MAXIFS(Data!L:L,Data!J:J,'Graph data'!AK11,Data!A:A,'Graph data'!$AL$2) -> 72,442 | AN11: =SUMIFS(Data!H:H,Data!A:A,'Graph data'!$AL$2,Data!G:G,'Graph data'!AL11)/2 -> 8,632 | AP11: Jan to Dec | AQ11: 2021 | AR11: 6,500 | AS11: 78,000 | AT11: 246 | AU11: 19,188,000 | AX11: 2020 | AY11: 98 | AZ11: 379 | BA11: 126 | BB11: 488 | BF11: Jan to Dec | BG11: 2,019 | BH11: 16,088,400 | BI11: 7,347,697 | BJ11: =(BH11*12%)-1 -> 1,930,607 | BK11: =BJ11*20% -> 386,121 | BL11: 6,423,975 | BM11: =BP10 -> 1,649,977 | BN11: 8,073,951 | BO11: 6,055,463 | BP11: 2,018,488 | BR11: =BI11/$BH11 -> 46% | BS11: =BJ11/$BH11 -> 12% | BT11: 2% | BU11: 38% | BY11: 2019 | BZ11: 2019-20 | CB11: Oct | CC11: Sep | CD11: October | CE11: 10 | CF11: 31 | CG11: st | CH11: 14 | CK11: 00007 | CL11: 2014 | CM11: Jennifer Taylor | CN11: Female | CO11: 543 | CP11: 91% | CQ11: 2 | CR11: 159 | CS11: 145 | CT11: 14 | CU11: 0
H12: Year wise result individual | K12: Grade | R12: Level | S12: Value | T12: Level | U12: Value | W12: Item | X12: Value | AK12: Amanda Johnson | AL12: Geography | AM12: =_xlfn.MAXIFS(Data!L:L,Data!J:J,'Graph data'!AK12,Data!A:A,'Graph data'!$AL$2) -> 68,418 | AN12: =SUMIFS(Data!H:H,Data!A:A,'Graph data'!$AL$2,Data!G:G,'Graph data'!AL12)/2 -> 8,526 | AP12: Jan to Dec | AQ12: 2022 | AR12: 6,800 | AS12: 81,600 | AT12: 246 | AU12: 20,073,600 | AX12: 2021 | AY12: 56 | AZ12: 214 | BA12: 91 | BB12: 347 | BF12: Jan to Dec | BG12: 2,020 | BH12: 18,597,600 | BI12: 7,862,036 | BJ12: =(BH12*23%)-1 -> 4,277,447 | BK12: =BJ12*32% -> 1,368,783 | BL12: 5,089,334 | BM12: 2,018,488 | BN12: 7,107,822 | BO12: 5,330,866 | BP12: 1,776,955 | BR12: 42% | BS12: 23% | BT12: 7% | BU12: 29% | BY12: 2020 | BZ12: 2020-21 | CB12: Nov | CC12: Oct | CD12: November | CE12: 11 | CF12: 30 | CG12: th | CH12: 15 | CK12: 00008 | CL12: 2014 | CM12: Christopher Anderson | CN12: Male | CO12: 537 | CP12: 90% | CQ12: 3 | CR12: 159 | CS12: 149 | CT12: 10 | CU12: 0
H13: =AQ4 -> 2014 | I13: =SUMIFS(Data!H:H,Data!E:E,'Graph data'!$I$2,Data!A:A,'Graph data'!H13) -> 504 | J13: 600 | K13: Grade 1 | R13: Excellent | S13: 20 | T13: 100 | U13: 10 | W13: Actual | X13: =S6 -> 1 | AA13: Target | AB13: Attended | AC13: Missed | AF13: Target | AG13: =AA14 -> 83 | AK13: Jessica Davis | AL13: History | AM13: =_xlfn.MAXIFS(Data!L:L,Data!J:J,'Graph data'!AK13,Data!A:A,'Graph data'!$AL$2) -> 62,340 | AN13: =SUMIFS(Data!H:H,Data!A:A,'Graph data'!$AL$2,Data!G:G,'Graph data'!AL13)/2 -> 8,618 | AP13: Jan to Dec | AQ13: 2023 | AR13: 7,000 | AS13: 84,000 | AT13: 246 | AU13: 20,664,000 | AX13: 2022 | AY13: 67 | AZ13: 214 | BA13: 91 | BB13: 291 | BF13: Jan to Dec | BG13: 2,021 | BH13: 19,188,000 | BI13: 8,019,277 | BJ13: =(BH13*21%)-1 -> 4,029,479 | BK13: =BJ13*28% -> 1,128,254 | BL13: 6,010,990 | BM13: 1,776,955 | BN13: 7,787,945 | BO13: 5,840,959 | BP13: 1,946,986 | BR13: 42% | BS13: 21% | BT13: 6% | BU13: 30% | BY13: 2021 | BZ13: 2021-22 | CB13: Dec | CC13: Nov | CD13: December | CE13: 12 | CF13: 31 | CG13: st | CH13: 16 | CK13: 00009 | CL13: 2014 | CM13: Amanda Thomas | CN13: Female | CO13: 525 | CP13: 88% | CQ13: 7 | CR13: 159 | CS13: 141 | CT13: 18 | CU13: 0
H14: =AQ5 -> 2015 | I14: =SUMIFS(Data!H:H,Data!E:E,'Graph data'!$I$2,Data!A:A,'Graph data'!H14) -> 526 | J14: 600 | K14: Grade 2 | R14: Good | S14: 30 | T14: 90 | U14: 10 | W14: Needle | X14: 8 | AA14: =AA6 -> 83 | AB14: =AB6 -> 79 | AC14: =AC6 -> 4 | AF14: Attended | AG14: =AB14 -> 79 | AK14: Elizabeth White | AL14: Math | AM14: =_xlfn.MAXIFS(Data!L:L,Data!J:J,'Graph data'!AK14,Data!A:A,'Graph data'!$AL$2) -> 51,234 | AN14: =SUMIFS(Data!H:H,Data!A:A,'Graph data'!$AL$2,Data!G:G,'Graph data'!AL14)/2 -> 8,540 | AP14: Jan to Dec | AQ14: 2024 | AR14: 7,400 | AS14: 88,800 | AT14: 246 | AU14: 21,844,800 | AX14: 2023 | AY14: 90 | AZ14: 304 | BA14: 105 | BB14: 354 | BF14: Jan to Dec | BG14: 2,022 | BH14: 20,073,600 | BI14: 8,179,662 | BJ14: =(BH14*20%)-1 -> 4,014,719 | BK14: =BJ14*30% -> 1,204,416 | BL14: 6,674,803 | BM14: 1,946,986 | BN14: 8,621,790 | BO14: 6,466,342 | BP14: 2,155,447 | BR14: 41% | BS14: 20% | BT14: 6% | BU14: 32% | BY14: 2022 | BZ14: 2022-23 | CK14: 00010 | CL14: 2014 | CM14: Matthew Jackson | CN14: Male | CO14: 537 | CP14: 90% | CQ14: 3 | CR14: 159 | CS14: 155 | CT14: 4 | CU14: 0
H15: 2016 | I15: =SUMIFS(Data!H:H,Data!E:E,'Graph data'!$I$2,Data!A:A,'Graph data'!H15) -> 530 | J15: 600 | K15: Grade 3 | R15: Average | S15: 30 | T15: 80 | U15: 10 | W15: Balance | X15: =492-X13-X14 -> 483 | AA15: 100% | AB15: =AB14/AA14 -> 95% | AC15: =AC14/AA14 -> 5% | AF15: Missed | AG15: =AC14 -> 4 | AK15: Matthew Green | AL15: Science | AM15: =_xlfn.MAXIFS(Data!L:L,Data!J:J,'Graph data'!AK15,Data!A:A,'Graph data'!$AL$2) -> 50,230 | AN15: =SUMIFS(Data!H:H,Data!A:A,'Graph data'!$AL$2,Data!G:G,'Graph data'!AL15)/2 -> 8,631 | AP15: Jan to Jun | AQ15: 2025 | AR15: 7,700 | AS15: =AR15*6 -> 46,200 | AT15: 246 | AU15: 11,365,200 | AX15: 2024 | AY15: 76 | AZ15: 302 | BA15: 98 | BB15: 390 | BF15: Jan to Dec | BG15: 2,023 | BH15: 20,664,000 | BI15: 8,343,255 | BJ15: =(BH15*21%)-1 -> 4,339,439 | BK15: =BJ15*28% -> 1,215,043 | BL15: 6,766,263 | BM15: 2,155,447 | BN15: 8,921,710 | BO15: 6,691,283 | BP15: 2,230,428 | BR15: 40% | BS15: 21% | BT15: 6% | BU15: 32% | BY15: 2023 | BZ15: 2023-24 | CK15: 00011 | CL15: 2014 | CM15: David Taylor | CN15: Male | CO15: 565 | CP15: 94% | CQ15: 1 | CR15: 159 | CS15: 153 | CT15: 6 | CU15: 0
H16: 2017 | I16: =SUMIFS(Data!H:H,Data!E:E,'Graph data'!$I$2,Data!A:A,'Graph data'!H16) -> 524 | J16: 600 | K16: Grade 4 | R16: Poor | S16: 20 | T16: 70 | U16: 10 | W16: Total | X16: =SUM(X13:X15) -> 492 | AX16: 2025 | AY16: 60 | AZ16: 200 | BA16: 63 | BB16: 210 | BF16: Jan to Dec | BG16: 2,024 | BH16: 21,844,800 | BI16: 8,676,986 | BJ16: =(BH16*20%)-1 -> 4,368,959 | BK16: =BJ16*23% -> 1,004,861 | BL16: 7,793,994 | BM16: 2,230,428 | BN16: 10,024,422 | BO16: 7,518,317 | BP16: 2,506,106 | BR16: 40% | BS16: 20% | BT16: 5% | BU16: 34% | BY16: 2024 | BZ16: 2024-25 | CK16: 00012 | CL16: 2014 | CM16: Daniel Harris | CN16: Male | CO16: 516 | CP16: 86% | CQ16: 11 | CR16: 159 | CS16: 144 | CT16: 15 | CU16: 0
H17: 2018 | I17: =SUMIFS(Data!H:H,Data!E:E,'Graph data'!$I$2,Data!A:A,'Graph data'!H17) -> 515 | J17: 600 | K17: Grade 5 | R17: Omitted | S17: 100 | T17: 60 | U17: 10 | AZ17: =SUM(AY6:AY16) -> 735 | BA17: =SUM(AZ6:AZ16) -> 2,576 | BB17: =SUM(BA6:BA16) -> 1,036 | BC17: =-SUM(BB6:BB16) -> (3,625) | BF17: Jan to Jun | BG17: 2,025 | BH17: 11,365,200 | BI17: 4,512,033 | BJ17: =(BH17*20%)-1 -> 2,273,039 | BK17: =BJ17*20% -> 454,608 | BL17: 4,125,520 | BM17: =BP16 -> 2,506,106 | BN17: =BL17+BM17 -> 6,631,626 | BP17: 6,631,626 | BR17: 40% | BS17: 20% | BT17: 4% | BU17: 0% | BY17: 2025 | BZ17: 2025-26 | CK17: 00013 | CL17: 2014 | CM17: Elizabeth Clark | CN17: Female | CO17: 276 | CP17: 46% | CQ17: 225 | CR17: 159 | CS17: 151 | CT17: 8 | CU17: 0
H18: 2019 | I18: =SUMIFS(Data!H:H,Data!E:E,'Graph data'!$I$2,Data!A:A,'Graph data'!H18) -> 512 | J18: 600 | K18: Grade 6 | R18: Total | S18: =SUM(S13:S17) -> 200 | T18: 50 | U18: 10 | BY18: 2026 | BZ18: 2026-27 | CK18: 00014 | CL18: 2014 | CM18: Ashley Lewis | CN18: Female | CO18: 245 | CP18: 41% | CQ18: 242 | CR18: 159 | CS18: 154 | CT18: 5 | CU18: 0
H19: 2020 | I19: =SUMIFS(Data!H:H,Data!E:E,'Graph data'!$I$2,Data!A:A,'Graph data'!H19) -> 498 | J19: 600 | K19: Grade 7 | T19: 40 | U19: 10 | AX19: Year linked to Owners view | BY19: 2027 | BZ19: 2027-28 | CK19: 00015 | CL19: 2014 | CM19: Joshua Robinson | CN19: Male | CO19: 247 | CP19: 41% | CQ19: 239 | CR19: 159 | CS19: 155 | CT19: 4 | CU19: 0
H20: 2021 | I20: =SUMIFS(Data!H:H,Data!E:E,'Graph data'!$I$2,Data!A:A,'Graph data'!H20) -> 546 | J20: 600 | K20: Grade 8 | T20: 30 | U20: 10 | AH20: ` | AY20: =AL2 -> 2024 | AZ20: =VLOOKUP($AY20,$AX$6:$BB$16,2,0) -> 76 | BA20: =VLOOKUP($AY20,$AX$6:$BB$16,3,0) -> 302 | BB20: =-VLOOKUP($AY20,$AX$6:$BB$16,4,0) -> -98 | BC20: =-VLOOKUP($AY20,$AX$6:$BB$16,5,0) -> -390 | BY20: 2028 | BZ20: 2028-29 | CK20: 00016 | CL20: 2014 | CM20: Kevin Wright | CN20: Male | CO20: 239 | CP20: 40% | CQ20: 245 | CR20: 159 | CS20: 149 | CT20: 10 | CU20: 0
H21: 2022 | I21: =SUMIFS(Data!H:H,Data!E:E,'Graph data'!$I$2,Data!A:A,'Graph data'!H21) -> 533 | J21: 600 | K21: Grade 9 | T21: 20 | U21: 10 | BL21: Profit USD '000 (Jan - Jun | BY21: 2029 | BZ21: 2029-30 | CK21: 00017 | CL21: 2014 | CM21: Timothy Scott | CN21: Male | CO21: 281 | CP21: 47% | CQ21: 223 | CR21: 159 | CS21: 153 | CT21: 6 | CU21: 0
H22: 2023 | I22: =SUMIFS(Data!H:H,Data!E:E,'Graph data'!$I$2,Data!A:A,'Graph data'!H22) -> 551 | J22: 600 | K22: Grade 10 | T22: 10 | U22: 10 | BL22: Profit USD '000 (Jan - Dec | BY22: 2030 | BZ22: 2030-31 | CK22: 00018 | CL22: 2014 | CM22: Jason Green | CN22: Male | CO22: 241 | CP22: 40% | CQ22: 243 | CR22: 159 | CS22: 153 | CT22: 6 | CU22: 0
H23: 2024 | I23: =SUMIFS(Data!H:H,Data!E:E,'Graph data'!$I$2,Data!A:A,'Graph data'!H23) -> 549 | J23: 600 | K23: Grade 11 | S23: total | T23: 0 | U23: =SUM(U13:U22) -> 100 | BF23: =BU5 -> Owner's withdrawal | BG23: =+BV23*100 -> 34 | BH23: =BH27-BG23 -> 66 | BI23: =BI28 -> 100 | BN23: =+BX23*100 -> 32 | BO23: =BO27-BN23 -> 68 | BP23: =BP28 -> 100 | BU23: =SUMIFS($BO$6:$BO$17,$BG$6:$BG$17,$BG$26)/1000 -> 7,518 | BV23: =BU23/BU27 -> 34% | BW23: =SUMIFS($BO$6:$BO$17,$BG$6:$BG$17,$BN$26)/1000 -> 6,691 | BX23: =BW23/BW27 -> 32% | BY23: 2031 | BZ23: 2031-32 | CK23: 00019 | CL23: 2014 | CM23: Jeffrey King | CN23: Male | CO23: 260 | CP23: 43% | CQ23: 235 | CR23: 159 | CS23: 144 | CT23: 15 | CU23: 0
H24: 2025 | I24: =SUMIFS(Data!H:H,Data!E:E,'Graph data'!$I$2,Data!A:A,'Graph data'!H24) -> 576 | J24: 600 | K24: Grade 12 | BY24: 2032 | BZ24: 2032-33 | CK24: 00020 | CL24: 2014 | CM24: Michelle Adams | CN24: Female | CO24: 279 | CP24: 47% | CQ24: 224 | CR24: 159 | CS24: 150 | CT24: 9 | CU24: 0
BG25: =IF(BG26=2025,BL21&" "&BG26&")",BL22&" "&BG26&")") -> Profit USD '000 (Jan - Dec 2024) | BN25: =BL22&" "&BN26&")" -> Profit USD '000 (Jan - Dec 2023) | BY25: 2033 | BZ25: 2033-34 | CK25: 00021 | CL25: 2014 | CM25: Brian Baker | CN25: Male | CO25: 276 | CP25: 46% | CQ25: 225 | CR25: 159 | CS25: 149 | CT25: 10 | CU25: 0
BG26: ='Owners view'!$C$4 -> 2024 | BL26: Check | BN26: =BG26-1 -> 2023 | BU26: =BG26 -> 2024 | BW26: =BN26 -> 2023 | BY26: 2034 | BZ26: 2034-35 | CK26: 00022 | CL26: 2014 | CM26: Ronald Nelson | CN26: Male | CO26: 270 | CP26: 45% | CQ26: 230 | CR26: 159 | CS26: 155 | CT26: 4 | CU26: 0
BF27: Revenue | BG27: =+BV27*100 -> 100 | BH27: =BG27 -> 100 | BL27: =SUM(BG27:BK27) -> 200 | BN27: =+BX27*100 -> 100 | BO27: =BN27 -> 100 | BS27: 200 | BU27: =SUMIFS($BH$6:$BH$17,$BG$6:$BG$17,$BG$26)/1000 -> 21,845 | BV27: 100% | BW27: =SUMIFS($BH$6:$BH$17,$BG$6:$BG$17,$BN$26)/1000 -> 20,664 | BX27: 100% | BY27: 2035 | BZ27: 2035-36 | CK27: 00023 | CL27: 2014 | CM27: Kimberly Hall | CN27: Female | CO27: 272 | CP27: 45% | CQ27: 228 | CR27: 159 | CS27: 152 | CT27: 7 | CU27: 0
BF28: Teachers Salaries | BG28: =+BV28*100 -> 40 | BH28: =BH27-BG28 -> 60 | BI28: =BG27 -> 100 | BL28: =SUM(BG28:BK28) -> 200 | BN28: =+BX28*100 -> 40 | BO28: =BO27-BN28 -> 60 | BP28: =BN27 -> 100 | BS28: 200 | BU28: =SUMIFS($BI$6:$BI$17,$BG$6:$BG$17,$BG$26)/1000 -> 8,677 | BV28: =BU28/BU27 -> 40% | BW28: =SUMIFS($BI$6:$BI$17,$BG$6:$BG$17,$BN$26)/1000 -> 8,343 | BX28: =BW28/BW27 -> 40% | BY28: 2036 | BZ28: 2036-37 | CK28: 00024 | CL28: 2014 | CM28: Amanda Allen | CN28: Female | CO28: 250 | CP28: 42% | CQ28: 238 | CR28: 159 | CS28: 149 | CT28: 10 | CU28: 0
R29: FEE | S29: 2025 | T29: Fee | BF29: Operating Expenses | BG29: =BG28 -> 40 | BH29: =+BV29*100 -> 20 | BI29: =BG27-BG29-BH29 -> 40 | BJ29: =BG27 -> 100 | BL29: 200 | BN29: =BN28 -> 40 | BO29: =+BX29*100 -> 21 | BP29: =BN27-BN29-BO29 -> 39 | BQ29: =BN27 -> 100 | BS29: 200 | BU29: =SUMIFS($BJ$6:$BJ$17,$BG$6:$BG$17,$BG$26)/1000 -> 4,369 | BV29: =BU29/BU27 -> 20% | BW29: =SUMIFS($BJ$6:$BJ$17,$BG$6:$BG$17,$BN$26)/1000 -> 4,339 | BX29: =BW29/BW27 -> 21% | BY29: 2037 | BZ29: 2037-38 | CK29: 00025 | CL29: 2014 | CM29: Stephanie Young | CN29: Female | CO29: 241 | CP29: 40% | CQ29: 243 | CR29: 159 | CS29: 151 | CT29: 8 | CU29: 0
BF30: Other Expenses | BG30: =BG29 -> 40 | BH30: =BH29 -> 20 | BI30: =+BV30*100 -> 5 | BJ30: =BG27-BG30-BH30-BI30 -> 36 | BK30: =BG27 -> 100 | BL30: 200 | BN30: =BN29 -> 40 | BO30: =BO29 -> 21 | BP30: =+BX30*100 -> 6 | BQ30: =BN27-BN30-BO30-BP30 -> 33 | BR30: =BN27 -> 100 | BS30: 200 | BU30: =SUMIFS($BK$6:$BK$17,$BG$6:$BG$17,$BG$26)/1000 -> 1,005 | BV30: =BU30/BU27 -> 5% | BW30: =SUMIFS($BK$6:$BK$17,$BG$6:$BG$17,$BN$26)/1000 -> 1,215 | BX30: =BW30/BW27 -> 6% | BY30: 2038 | BZ30: 2038-39 | CK30: 00026 | CL30: 2014 | CM30: Edward Wright | CN30: Male | CO30: 236 | CP30: 39% | CQ30: 246 | CR30: 159 | CS30: 143 | CT30: 16 | CU30: 0
R31: JAN | S31: =IF(T31>0,1,0) -> 1 | T31: =SUMIFS(Data!M:M,Data!A:A,$S$29,Data!B:B,'Graph data'!R31,Data!E:E,'Graph data'!$I$2) -> 7,700 | BY31: 2039 | BZ31: 2039-40 | CK31: 00027 | CL31: 2014 | CM31: Donald Carter | CN31: Male | CO31: 269 | CP31: 45% | CQ31: 232 | CR31: 159 | CS31: 153 | CT31: 6 | CU31: 0
R32: FEB | S32: =IF(T32>0,1,0) -> 1 | T32: =SUMIFS(Data!M:M,Data!A:A,$S$29,Data!B:B,'Graph data'!R32,Data!E:E,'Graph data'!$I$2) -> 7,700 | BF32: =BF28 -> Teachers Salaries | BY32: 2040 | BZ32: 2040-41 | CK32: 00028 | CL32: 2014 | CM32: George Mitchell | CN32: Male | CO32: 270 | CP32: 45% | CQ32: 230 | CR32: 159 | CS32: 152 | CT32: 7 | CU32: 0
R33: MAR | S33: 1 | T33: =SUMIFS(Data!M:M,Data!A:A,$S$29,Data!B:B,'Graph data'!R33,Data!E:E,'Graph data'!$I$2) -> 7,700 | BF33: =BF29 -> Operating Expenses | BY33: 2041 | BZ33: 2041-42 | CK33: 00029 | CL33: 2014 | CM33: Paul Perez | CN33: Male | CO33: 264 | CP33: 44% | CQ33: 234 | CR33: 159 | CS33: 150 | CT33: 9 | CU33: 0
R34: APR | S34: 1 | T34: =SUMIFS(Data!M:M,Data!A:A,$S$29,Data!B:B,'Graph data'!R34,Data!E:E,'Graph data'!$I$2) -> 7,700 | BF34: =BF30 -> Other Expenses | BY34: 2042 | BZ34: 2042-43 | CK34: 00030 | CL34: 2014 | CM34: Mark Turner | CN34: Male | CO34: 252 | CP34: 42% | CQ34: 237 | CR34: 159 | CS34: 147 | CT34: 12 | CU34: 0
R35: MAY | S35: 1 | T35: =SUMIFS(Data!M:M,Data!A:A,$S$29,Data!B:B,'Graph data'!R35,Data!E:E,'Graph data'!$I$2) -> 7,700 | BF35: =BF27&" "&"till Net Profit" -> Revenue till Net Profit | BY35: 2043 | BZ35: 2043-44 | CK35: 00031 | CL35: 2014 | CM35: Rebecca Parker | CN35: Female | CO35: 275 | CP35: 46% | CQ35: 227 | CR35: 159 | CS35: 148 | CT35: 11 | CU35: 0
R36: JUN | S36: 1 | T36: =SUMIFS(Data!M:M,Data!A:A,$S$29,Data!B:B,'Graph data'!R36,Data!E:E,'Graph data'!$I$2) -> 7,700 | BF36: =BF23 -> Owner's withdrawal | BY36: 2044 | BZ36: 2044-45 | CK36: 00032 | CL36: 2014 | CM36: Laura Evans | CN36: Female | CO36: 268 | CP36: 45% | CQ36: 233 | CR36: 159 | CS36: 147 | CT36: 12 | CU36: 0
R37: JUL | S37: 0 | T37: =SUMIFS(Data!M:M,Data!A:A,$S$29,Data!B:B,'Graph data'!R37,Data!E:E,'Graph data'!$I$2) -> 0 | BY37: 2045 | BZ37: 2045-46 | CK37: 00033 | CL37: 2014 | CM37: Steven Reed | CN37: Male | CO37: 247 | CP37: 41% | CQ37: 239 | CR37: 159 | CS37: 149 | CT37: 10 | CU37: 0
R38: AUG | S38: 0 | T38: =SUMIFS(Data!M:M,Data!A:A,$S$29,Data!B:B,'Graph data'!R38,Data!E:E,'Graph data'!$I$2) -> 0 | BY38: 2046 | BZ38: 2046-47 | CK38: 00034 | CL38: 2014 | CM38: Sharon Mitchell | CN38: Female | CO38: 247 | CP38: 41% | CQ38: 239 | CR38: 159 | CS38: 150 | CT38: 9 | CU38: 0
R39: SEP | S39: 0 | T39: =SUMIFS(Data!M:M,Data!A:A,$S$29,Data!B:B,'Graph data'!R39,Data!E:E,'Graph data'!$I$2) -> 0 | BY39: 2047 | BZ39: 2047-48 | CK39: 00035 | CL39: 2014 | CM39: Deborah Walker | CN39: Female | CO39: 271 | CP39: 45% | CQ39: 229 | CR39: 159 | CS39: 149 | CT39: 10 | CU39: 0
R40: OCT | S40: 0 | T40: =SUMIFS(Data!M:M,Data!A:A,$S$29,Data!B:B,'Graph data'!R40,Data!E:E,'Graph data'!$I$2) -> 0 | BF40: Legand | BG40: =BG26 -> 2024 | BH40: =BN26 -> 2023 | BY40: 2048 | BZ40: 2048-49 | CK40: 00036 | CL40: 2014 | CM40: Carolyn Hill | CN40: Female | CO40: 257 | CP40: 43% | CQ40: 236 | CR40: 159 | CS40: 150 | CT40: 9 | CU40: 0
R41: NOV | S41: 0 | T41: =SUMIFS(Data!M:M,Data!A:A,$S$29,Data!B:B,'Graph data'!R41,Data!E:E,'Graph data'!$I$2) -> 0 | BF41: =BF23 -> Owner's withdrawal | BG41: =BU23 -> 7,518 | BH41: =BW23 -> 6,691 | BY41: 2049 | BZ41: 2049-50 | CK41: 00037 | CL41: 2014 | CM41: Kenneth Howard | CN41: Male | CO41: 335 | CP41: 56% | CQ41: 217 | CR41: 159 | CS41: 152 | CT41: 7 | CU41: 0
R42: DEC | S42: 0 | T42: =SUMIFS(Data!M:M,Data!A:A,$S$29,Data!B:B,'Graph data'!R42,Data!E:E,'Graph data'!$I$2) -> 0 | BF42: =BF27 -> Revenue | BG42: =BU27 -> 21,845 | BH42: =+BW27 -> 20,664 | BY42: 2050 | BZ42: 2050-51 | CK42: 00038 | CL42: 2014 | CM42: Angela Bailey | CN42: Female | CO42: 431 | CP42: 72% | CQ42: 15 | CR42: 159 | CS42: 152 | CT42: 7 | CU42: 0
R43: Paid | S43: =SUM(S31:S42) -> 6 | T43: =SUM(T31:T42) -> 46,200 | U43: =T43/T45 -> 100% | BF43: =BF28 -> Teachers Salaries | BG43: =BU28 -> 8,677 | BH43: =+BW28 -> 8,343 | BY43: 2051 | BZ43: 2051-52 | CK43: 00039 | CL43: 2014 | CM43: Gary Cox | CN43: Male | CO43: 433 | CP43: 72% | CQ43: 14 | CR43: 159 | CS43: 152 | CT43: 7 | CU43: 0
R44: =IF(S44=0,"All paid","Outstanding") -> All paid | S44: =S45-S43 -> 0 | T44: =+T45-T43 -> 0 | U44: =T44/T45 -> 0% | BF44: Operating Expenses | BG44: 4,369 | BH44: 4,339 | BY44: 2052 | BZ44: 2052- | CK44: 00040 | CL44: 2014 | CM44: Eric Foster | CN44: Male | CO44: 349 | CP44: 58% | CQ44: 194 | CR44: 159 | CS44: 143 | CT44: 16 | CU44: 0
R45: TARGET | S45: 6 | T45: 46,200 | BF45: Other Expenses | BG45: 1,005 | BH45: 1,215 | CK45: 00041 | CL45: 2014 | CM45: Helen Morgan | CN45: Female | CO45: 386 | CP45: 64% | CQ45: 72 | CR45: 159 | CS45: 148 | CT45: 11 | CU45: 0
Q46: 1 | BF46: Profit | BG46: =+BG42-BG43-BG44-BG45 -> 7,794 | BH46: =+BH42-BH43-BH44-BH45 -> 6,766 | CK46: 00042 | CL46: 2014 | CM46: Scott Bell | CN46: Male | CO46: 402 | CP46: 67% | CQ46: 39 | CR46: 159 | CS46: 148 | CT46: 11 | CU46: 0
Q47: 1 | CK47: 00043 | CL47: 2014 | CM47: Virginia Reed | CN47: Female | CO47: 364 | CP47: 61% | CQ47: 146 | CR47: 159 | CS47: 149 | CT47: 10 | CU47: 0
Q48: 1 | CK48: 00044 | CL48: 2014 | CM48: Pamela Cook | CN48: Female | CO48: 377 | CP48: 63% | CQ48: 104 | CR48: 159 | CS48: 155 | CT48: 4 | CU48: 0
Q49: 1 | CK49: 00045 | CL49: 2014 | CM49: Evelyn Torres | CN49: Female | CO49: 403 | CP49: 67% | CQ49: 38 | CR49: 159 | CS49: 143 | CT49: 16 | CU49: 0
Q50: 1 | CK50: 00046 | CL50: 2014 | CM50: Christina Flores | CN50: Female | CO50: 350 | CP50: 58% | CQ50: 191 | CR50: 159 | CS50: 147 | CT50: 12 | CU50: 0
Q51: 1 | CK51: 00047 | CL51: 2014 | CM51: Rachel Gonzales | CN51: Female | CO51: 357 | CP51: 60% | CQ51: 162 | CR51: 159 | CS51: 148 | CT51: 11 | CU51: 0
CK52: 00048 | CL52: 2014 | CM52: Larry Price | CN52: Male | CO52: 384 | CP52: 64% | CQ52: 77 | CR52: 159 | CS52: 152 | CT52: 7 | CU52: 0
CK53: 00049 | CL53: 2014 | CM53: Denise Barnes | CN53: Female | CO53: 394 | CP53: 66% | CQ53: 44 | CR53: 159 | CS53: 152 | CT53: 7 | CU53: 0
CK54: 00050 | CL54: 2014 | CM54: Peter Simmons | CN54: Male | CO54: 350 | CP54: 58% | CQ54: 191 | CR54: 159 | CS54: 144 | CT54: 15 | CU54: 0
CK55: 00051 | CL55: 2014 | CM55: Jerry Bryant | CN55: Male | CO55: 360 | CP55: 60% | CQ55: 156 | CR55: 159 | CS55: 151 | CT55: 8 | CU55: 0
CK56: 00052 | CL56: 2014 | CM56: Raymond Alexander | CN56: Male | CO56: 379 | CP56: 63% | CQ56: 98 | CR56: 159 | CS56: 150 | CT56: 9 | CU56: 0
CK57: 00053 | CL57: 2014 | CM57: Dennis Griffin | CN57: Male | CO57: 355 | CP57: 59% | CQ57: 173 | CR57: 159 | CS57: 147 | CT57: 12 | CU57: 0
CK58: 00054 | CL58: 2014 | CM58: Walter Cole | CN58: Male | CO58: 368 | CP58: 61% | CQ58: 132 | CR58: 159 | CS58: 153 | CT58: 6 | CU58: 0
CK59: 00055 | CL59: 2014 | CM59: Debra Murphy | CN59: Female | CO59: 363 | CP59: 61% | CQ59: 148 | CR59: 159 | CS59: 150 | CT59: 9 | CU59: 0
CK60: 00056 | CL60: 2014 | CM60: Carolyn Diaz | CN60: Female | CO60: 348 | CP60: 58% | CQ60: 196 | CR60: 159 | CS60: 148 | CT60: 11 | CU60: 0
CK61: 00057 | CL61: 2014 | CM61: Gregory Ward | CN61: Male | CO61: 437 | CP61: 73% | CQ61: 13 | CR61: 159 | CS61: 152 | CT61: 7 | CU61: 0
CK62: 00058 | CL62: 2014 | CM62: Evelyn Ross | CN62: Female | CO62: 340 | CP62: 57% | CQ62: 211 | CR62: 159 | CS62: 157 | CT62: 2 | CU62: 0
CK63: 00059 | CL63: 2014 | CM63: Terry Patterson | CN63: Male | CO63: 384 | CP63: 64% | CQ63: 77 | CR63: 159 | CS63: 152 | CT63: 7 | CU63: 0
CK64: 00060 | CL64: 2014 | CM64: Carl Watson | CN64: Male | CO64: 380 | CP64: 63% | CQ64: 92 | CR64: 159 | CS64: 142 | CT64: 17 | CU64: 0
CK65: 00061 | CL65: 2014 | CM65: Ann Powell | CN65: Female | CO65: 392 | CP65: 65% | CQ65: 51 | CR65: 159 | CS65: 154 | CT65: 5 | CU65: 0
CK66: 00062 | CL66: 2014 | CM66: Phillip Bryant | CN66: Male | CO66: 363 | CP66: 61% | CQ66: 148 | CR66: 159 | CS66: 158 | CT66: 1 | CU66: 0
CK67: 00063 | CL67: 2014 | CM67: Katherine Butler | CN67: Female | CO67: 353 | CP67: 59% | CQ67: 179 | CR67: 159 | CS67: 144 | CT67: 15 | CU67: 0
CK68: 00064 | CL68: 2014 | CM68: Louis Stewart | CN68: Male | CO68: 379 | CP68: 63% | CQ68: 98 | CR68: 159 | CS68: 151 | CT68: 8 | CU68: 0
CK69: 00065 | CL69: 2014 | CM69: Wayne Sanchez | CN69: Male | CO69: 404 | CP69: 67% | CQ69: 34 | CR69: 159 | CS69: 149 | CT69: 10 | CU69: 0
CK70: 00066 | CL70: 2014 | CM70: Alan Long | CN70: Male | CO70: 369 | CP70: =CO70/600 -> 62% | CQ70: 129 | CR70: 159 | CS70: 156 | CT70: 3 | CU70: 0
CK71: 00067 | CL71: 2014 | CM71: Harry Wood | CN71: Male | CO71: 353 | CP71: 59% | CQ71: 179 | CR71: 159 | CS71: 151 | CT71: 8 | CU71: 0
CK72: 00068 | CL72: 2014 | CM72: Roger Perry | CN72: Male | CO72: 353 | CP72: 59% | CQ72: 179 | CR72: 159 | CS72: 142 | CT72: 17 | CU72: 0
CK73: 00069 | CL73: 2014 | CM73: Heather Coleman | CN73: Female | CO73: 372 | CP73: 62% | CQ73: 116 | CR73: 159 | CS73: 153 | CT73: 6 | CU73: 0
CK74: 00070 | CL74: 2014 | CM74: Judith Simmons | CN74: Female | CO74: 353 | CP74: 59% | CQ74: 179 | CR74: 159 | CS74: 149 | CT74: 10 | CU74: 0
CK75: 00071 | CL75: 2014 | CM75: Bruce Bennett | CN75: Male | CO75: 351 | CP75: 59% | CQ75: 188 | CR75: 159 | CS75: 153 | CT75: 6 | CU75: 0
CK76: 00072 | CL76: 2014 | CM76: Nicole Barnes | CN76: Female | CO76: 394 | CP76: 66% | CQ76: 44 | CR76: 159 | CS76: 157 | CT76: 2 | CU76: 0
CK77: 00073 | CL77: 2014 | CM77: Eugene Hughes | CN77: Male | CO77: 383 | CP77: 64% | CQ77: 81 | CR77: 159 | CS77: 148 | CT77: 11 | CU77: 0
CK78: 00074 | CL78: 2014 | CM78: Dale Foster | CN78: Male | CO78: 422 | CP78: 70% | CQ78: 16 | CR78: 159 | CS78: 149 | CT78: 10 | CU78: 0
CK79: 00075 | CL79: 2014 | CM79: Janice Ross | CN79: Female | CO79: 411 | CP79: 69% | CQ79: 24 | CR79: 159 | CS79: 152 | CT79: 7 | CU79: 0
CK80: 00076 | CL80: 2014 | CM80: Billy Patterson | CN80: Male | CO80: 401 | CP80: 67% | CQ80: 40 | CR80: 159 | CS80: 153 | CT80: 6 | CU80: 0
CK81: 00077 | CL81: 2014 | CM81: Catherine Wood | CN81: Female | CO81: 388 | CP81: 65% | CQ81: 63 | CR81: 159 | CS81: 142 | CT81: 17 | CU81: 0
CK82: 00078 | CL82: 2014 | CM82: Johnny Bryant | CN82: Male | CO82: 356 | CP82: 59% | CQ82: 167 | CR82: 159 | CS82: 151 | CT82: 8 | CU82: 0
CK83: 00079 | CL83: 2014 | CM83: Marilyn Powell | CN83: Female | CO83: 351 | CP83: 59% | CQ83: 188 | CR83: 159 | CS83: 147 | CT83: 12 | CU83: 0
CK84: 00080 | CL84: 2014 | CM84: Louis Watson | CN84: Male | CO84: 365 | CP84: 61% | CQ84: 143 | CR84: 159 | CS84: 151 | CT84: 8 | CU84: 0
CK85: 00081 | CL85: 2014 | CM85: Grace Murphy | CN85: Female | CO85: 359 | CP85: 60% | CQ85: 158 | CR85: 159 | CS85: 148 | CT85: 11 | CU85: 0
CK86: 00082 | CL86: 2014 | CM86: Lori Diaz | CN86: Female | CO86: 354 | CP86: 59% | CQ86: 177 | CR86: 159 | CS86: 152 | CT86: 7 | CU86: 0
CK87: 00083 | CL87: 2014 | CM87: Jimmy Torres | CN87: Male | CO87: 377 | CP87: 63% | CQ87: 104 | CR87: 159 | CS87: 152 | CT87: 7 | CU87: 0
CK88: 00084 | CL88: 2014 | CM88: Antonio Gonzales | CN88: Male | CO88: 390 | CP88: 65% | CQ88: 58 | CR88: 159 | CS88: 151 | CT88: 8 | CU88: 0
CK89: 00085 | CL89: 2014 | CM89: Cheryl Flores | CN89: Female | CO89: 383 | CP89: 64% | CQ89: 81 | CR89: 159 | CS89: 148 | CT89: 11 | CU89: 0
CK90: 00086 | CL90: 2014 | CM90: Phillip Coleman | CN90: Male | CO90: 369 | CP90: 62% | CQ90: 129 | CR90: 159 | CS90: 152 | CT90: 7 | CU90: 0
CK91: 00087 | CL91: 2014 | CM91: Johnny Bell | CN91: Male | CO91: 380 | CP91: 63% | CQ91: 92 | CR91: 159 | CS91: 148 | CT91: 11 | CU91: 0
CK92: 00088 | CL92: 2014 | CM92: Stanley Cox | CN92: Male | CO92: 371 | CP92: 62% | CQ92: 121 | CR92: 159 | CS92: 144 | CT92: 15 | CU92: 0
CK93: 00089 | CL93: 2014 | CM93: Marvin Howard | CN93: Male | CO93: 375 | CP93: 63% | CQ93: 107 | CR93: 159 | CS93: 152 | CT93: 7 | CU93: 0
CK94: 00090 | CL94: 2014 | CM94: Leon Price | CN94: Male | CO94: 355 | CP94: 59% | CQ94: 173 | CR94: 159 | CS94: 151 | CT94: 8 | CU94: 0
CK95: 00091 | CL95: 2014 | CM95: Connie Bailey | CN95: Female | CO95: 349 | CP95: 58% | CQ95: 194 | CR95: 159 | CS95: 156 | CT95: 3 | CU95: 0
CK96: 00092 | CL96: 2014 | CM96: Leroy Simmons | CN96: Male | CO96: 357 | CP96: 60% | CQ96: 162 | CR96: 159 | CS96: 150 | CT96: 9 | CU96: 0
CK97: 00093 | CL97: 2014 | CM97: Tracey Cook | CN97: Female | CO97: 347 | CP97: 58% | CQ97: 199 | CR97: 159 | CS97: 153 | CT97: 6 | CU97: 0
CK98: 00094 | CL98: 2014 | CM98: Morris Reed | CN98: Male | CO98: 370 | CP98: 62% | CQ98: 124 | CR98: 159 | CS98: 151 | CT98: 8 | CU98: 0
CK99: 00095 | CL99: 2014 | CM99: Marsha Ward | CN99: Female | CO99: 405 | CP99: 68% | CQ99: 33 | CR99: 159 | CS99: 157 | CT99: 2 | CU99: 0
CK100: 00096 | CL100: 2014 | CM100: Ellen Watson | CN100: Female | CO100: 380 | CP100: 63% | CQ100: 92 | CR100: 159 | CS100: 151 | CT100: 8 | CU100: 0
CK101: 00097 | CL101: 2014 | CM101: Tanya Evans | CN101: Female | CO101: 344 | CP101: 57% | CQ101: 206 | CR101: 159 | CS101: 142 | CT101: 17 | CU101: 0
CK102: 00098 | CL102: 2014 | CM102: Gilbert Alexander | CN102: Male | CO102: 394 | CP102: 66% | CQ102: 44 | CR102: 159 | CS102: 145 | CT102: 14 | CU102: 0
CK103: 00099 | CL103: 2014 | CM103: Charlene Griffin | CN103: Female | CO103: 387 | CP103: 65% | CQ103: 70 | CR103: 159 | CS103: 154 | CT103: 5 | CU103: 0
CK104: 00100 | CL104: 2014 | CM104: Leroy Bryant | CN104: Male | CO104: 381 | CP104: 64% | CQ104: 90 | CR104: 159 | CS104: 143 | CT104: 16 | CU104: 0
CK105: 00101 | CL105: 2014 | CM105: Kristin Barnes | CN105: Female | CO105: 345 | CP105: 58% | CQ105: 204 | CR105: 159 | CS105: 151 | CT105: 8 | CU105: 0
CK106: 00102 | CL106: 2014 | CM106: Derrick Murphy | CN106: Male | CO106: 372 | CP106: 62% | CQ106: 116 | CR106: 159 | CS106: 155 | CT106: 4 | CU106: 0
CK107: 00103 | CL107: 2014 | CM107: Tommy Diaz | CN107: Male | CO107: 352 | CP107: 59% | CQ107: 183 | CR107: 159 | CS107: 146 | CT107: 13 | CU107: 0
CK108: 00104 | CL108: 2014 | CM108: Vanessa Wood | CN108: Female | CO108: 391 | CP108: 65% | CQ108: 56 | CR108: 159 | CS108: 151 | CT108: 8 | CU108: 0
CK109: 00105 | CL109: 2014 | CM109: Marvin Turner | CN109: Male | CO109: 326 | CP109: 54% | CQ109: 221 | CR109: 159 | CS109: 152 | CT109: 7 | CU109: 0
CK110: 00106 | CL110: 2014 | CM110: Calvin Stewart | CN110: Male | CO110: 388 | CP110: 65% | CQ110: 63 | CR110: 159 | CS110: 156 | CT110: 3 | CU110: 0
CK111: 00107 | CL111: 2014 | CM111: Wanda Reed | CN111: Female | CO111: 363 | CP111: 61% | CQ111: 148 | CR111: 159 | CS111: 147 | CT111: 12 | CU111: 0
CK112: 00108 | CL112: 2014 | CM112: Yvonne Coleman | CN112: Female | CO112: 378 | CP112: 63% | CQ112: 103 | CR112: 159 | CS112: 149 | CT112: 10 | CU112: 0
CK113: 00109 | CL113: 2014 | CM113: Tina Foster | CN113: Female | CO113: 367 | CP113: 61% | CQ113: 133 | CR113: 159 | CS113: 148 | CT113: 11 | CU113: 0
CK114: 00110 | CL114: 2014 | CM114: Edwin Gonzales | CN114: Male | CO114: 340 | CP114: 57% | CQ114: 211 | CR114: 159 | CS114: 149 | CT114: 10 | CU114: 0
CK115: 00111 | CL115: 2014 | CM115: Miriam Powell | CN115: Female | CO115: 359 | CP115: 60% | CQ115: 158 | CR115: 159 | CS115: 144 | CT115: 15 | CU115: 0
CK116: 00112 | CL116: 2014 | CM116: Vernon Bell | CN116: Male | CO116: 367 | CP116: 61% | CQ116: 133 | CR116: 159 | CS116: 150 | CT116: 9 | CU116: 0
CK117: 00113 | CL117: 2014 | CM117: Nathaniel Wood | CN117: Male | CO117: 394 | CP117: 66% | CQ117: 44 | CR117: 159 | CS117: 151 | CT117: 8 | CU117: 0
CK118: 00114 | CL118: 2014 | CM118: Wallace Price | CN118: Male | CO118: 333 | CP118: 56% | CQ118: 218 | CR118: 159 | CS118: 145 | CT118: 14 | CU118: 0
CK119: 00115 | CL119: 2014 | CM119: Darlene Griffin | CN119: Female | CO119: 375 | CP119: 63% | CQ119: 107 | CR119: 159 | CS119: 144 | CT119: 15 | CU119: 0
CK120: 00116 | CL120: 2014 | CM120: Beatrice Watson | CN120: Female | CO120: 360 | CP120: 60% | CQ120: 156 | CR120: 159 | CS120: 151 | CT120: 8 | CU120: 0
CK121: 00117 | CL121: 2014 | CM121: Ellen Bryant | CN121: Female | CO121: 388 | CP121: 65% | CQ121: 63 | CR121: 159 | CS121: 154 | CT121: 5 | CU121: 0
CK122: 00118 | CL122: 2014 | CM122: Carla Torres | CN122: Female | CO122: 361 | CP122: 60% | CQ122: 153 | CR122: 159 | CS122: 154 | CT122: 5 | CU122: 0
CK123: 00119 | CL123: 2014 | CM123: Gloria Diaz | CN123: Female | CO123: 389 | CP123: 65% | CQ123: 60 | CR123: 159 | CS123: 155 | CT123: 4 | CU123: 0
CK124: 00120 | CL124: 2014 | CM124: Constance Flores | CN124: Female | CO124: 380 | CP124: 63% | CQ124: 92 | CR124: 159 | CS124: 151 | CT124: 8 | CU124: 0
CK125: 00121 | CL125: 2014 | CM125: Lorraine Barnes | CN125: Female | CO125: 383 | CP125: 64% | CQ125: 81 | CR125: 159 | CS125: 142 | CT125: 17 | CU125: 0
CK126: 00122 | CL126: 2014 | CM126: Neil Foster | CN126: Male | CO126: 340 | CP126: 57% | CQ126: 211 | CR126: 159 | CS126: 150 | CT126: 9 | CU126: 0
CK127: 00123 | CL127: 2014 | CM127: Malcolm Stewart | CN127: Male | CO127: 342 | CP127: 57% | CQ127: 209 | CR127: 159 | CS127: 154 | CT127: 5 | CU127: 0
CK128: 00124 | CL128: 2014 | CM128: Deanna Murphy | CN128: Female | CO128: 339 | CP128: 57% | CQ128: 215 | CR128: 159 | CS128: 151 | CT128: 8 | CU128: 0
CK129: 00125 | CL129: 2014 | CM129: Tammy Wood | CN129: Female | CO129: 339 | CP129: 57% | CQ129: 215 | CR129: 159 | CS129: 150 | CT129: 9 | CU129: 0
CK130: 00126 | CL130: 2014 | CM130: Jerome Bell | CN130: Male | CO130: 404 | CP130: 67% | CQ130: 34 | CR130: 159 | CS130: 144 | CT130: 15 | CU130: 0
CK131: 00127 | CL131: 2014 | CM131: Lynne Coleman | CN131: Female | CO131: 409 | CP131: 68% | CQ131: 28 | CR131: 159 | CS131: 150 | CT131: 9 | CU131: 0
CK132: 00128 | CL132: 2014 | CM132: Kirk Watson | CN132: Male | CO132: 386 | CP132: 64% | CQ132: 72 | CR132: 159 | CS132: 146 | CT132: 13 | CU132: 0
CK133: 00129 | CL133: 2014 | CM133: Georgia Powell | CN133: Female | CO133: 361 | CP133: 60% | CQ133: 153 | CR133: 159 | CS133: 155 | CT133: 4 | CU133: 0
CK134: 00130 | CL134: 2014 | CM134: Lance Turner | CN134: Male | CO134: 392 | CP134: =CO134/600 -> 65% | CQ134: 51 | CR134: 159 | CS134: 149 | CT134: 10 | CU134: 0
CK135: 00131 | CL135: 2014 | CM135: Lance Bryant | CN135: Male | CO135: 379 | CP135: 63% | CQ135: 98 | CR135: 159 | CS135: 153 | CT135: 6 | CU135: 0
CK136: 00132 | CL136: 2014 | CM136: Ross Griffin | CN136: Male | CO136: 391 | CP136: 65% | CQ136: 56 | CR136: 159 | CS136: 149 | CT136: 10 | CU136: 0
CK137: 00133 | CL137: 2014 | CM137: Duane Reed | CN137: Male | CO137: 375 | CP137: 63% | CQ137: 107 | CR137: 159 | CS137: 155 | CT137: 4 | CU137: 0
CK138: 00134 | CL138: 2014 | CM138: Grant Diaz | CN138: Male | CO138: 380 | CP138: 63% | CQ138: 92 | CR138: 159 | CS138: 146 | CT138: 13 | CU138: 0
CK139: 00135 | CL139: 2014 | CM139: Felix Torres | CN139: Male | CO139: 352 | CP139: 59% | CQ139: 183 | CR139: 159 | CS139: 144 | CT139: 15 | CU139: 0
CK140: 00136 | CL140: 2014 | CM140: Tasha Flores | CN140: Female | CO140: 375 | CP140: 63% | CQ140: 107 | CR140: 159 | CS140: 151 | CT140: 8 | CU140: 0
CK141: 00137 | CL141: 2014 | CM141: Perry Stewart | CN141: Male | CO141: 387 | CP141: 65% | CQ141: 70 | CR141: 159 | CS141: 150 | CT141: 9 | CU141: 0
CK142: 00138 | CL142: 2014 | CM142: Salvador Gonzales | CN142: Male | CO142: 346 | CP142: 58% | CQ142: 202 | CR142: 159 | CS142: 153 | CT142: 6 | CU142: 0
CK143: 00139 | CL143: 2014 | CM143: Kendra Murphy | CN143: Female | CO143: 352 | CP143: 59% | CQ143: 183 | CR143: 159 | CS143: 153 | CT143: 6 | CU143: 0
CK144: 00140 | CL144: 2014 | CM144: Brianna Wood | CN144: Female | CO144: 370 | CP144: 62% | CQ144: 124 | CR144: 159 | CS144: 156 | CT144: 3 | CU144: 0
CK145: 00141 | CL145: 2014 | CM145: Heidi Barnes | CN145: Female | CO145: 366 | CP145: 61% | CQ145: 139 | CR145: 159 | CS145: 142 | CT145: 17 | CU145: 0
CK146: 00142 | CL146: 2014 | CM146: Quentin Price | CN146: Male | CO146: 375 | CP146: 63% | CQ146: 107 | CR146: 159 | CS146: 143 | CT146: 16 | CU146: 0
CK147: 00143 | CL147: 2014 | CM147: Clayton Watson | CN147: Male | CO147: 372 | CP147: 62% | CQ147: 116 | CR147: 159 | CS147: 157 | CT147: 2 | CU147: 0
CK148: 00144 | CL148: 2014 | CM148: Morris Foster | CN148: Male | CO148: 367 | CP148: 61% | CQ148: 133 | CR148: 159 | CS148: 145 | CT148: 14 | CU148: 0
CK149: 00145 | CL149: 2014 | CM149: Lance Patterson | CN149: Male | CO149: 364 | CP149: 61% | CQ149: 146 | CR149: 159 | CS149: 147 | CT149: 12 | CU149: 0
CK150: 00146 | CL150: 2014 | CM150: Sylvester Bell | CN150: Male | CO150: 352 | CP150: 59% | CQ150: 183 | CR150: 159 | CS150: 154 | CT150: 5 | CU150: 0
CK151: 00147 | CL151: 2014 | CM151: Kelli Diaz | CN151: Female | CO151: 409 | CP151: 68% | CQ151: 28 | CR151: 159 | CS151: 140 | CT151: 19 | CU151: 0
CK152: 00148 | CL152: 2014 | CM152: Bobbi Griffin | CN152: Female | CO152: 404 | CP152: 67% | CQ152: 34 | CR152: 159 | CS152: 148 | CT152: 11 | CU152: 0
CK153: 00149 | CL153: 2014 | CM153: Derrick Bryant | CN153: Male | CO153: 347 | CP153: 58% | CQ153: 199 | CR153: 159 | CS153: 151 | CT153: 8 | CU153: 0
CK154: 00150 | CL154: 2014 | CM154: Rickey Stewart | CN154: Male | CO154: 406 | CP154: 68% | CQ154: 31 | CR154: 159 | CS154: 144 | CT154: 15 | CU154: 0
CK155: 00151 | CL155: 2014 | CM155: Tricia Reed | CN155: Female | CO155: 357 | CP155: 60% | CQ155: 162 | CR155: 159 | CS155: 151 | CT155: 8 | CU155: 0
CK156: 00152 | CL156: 2014 | CM156: Misty Wood | CN156: Female | CO156: 344 | CP156: 57% | CQ156: 206 | CR156: 159 | CS156: 151 | CT156: 8 | CU156: 0
CK157: 00153 | CL157: 2014 | CM157: Nick Turner | CN157: Male | CO157: 356 | CP157: 59% | CQ157: 167 | CR157: 159 | CS157: 148 | CT157: 11 | CU157: 0
CK158: 00154 | CL158: 2014 | CM158: Lacy Gonzales | CN158: Female | CO158: 373 | CP158: 62% | CQ158: 115 | CR158: 159 | CS158: 146 | CT158: 13 | CU158: 0
CK159: 00155 | CL159: 2014 | CM159: Kari Flores | CN159: Female | CO159: 404 | CP159: 67% | CQ159: 34 | CR159: 159 | CS159: 150 | CT159: 9 | CU159: 0
CK160: 00156 | CL160: 2014 | CM160: Brandy Murphy | CN160: Female | CO160: 383 | CP160: 64% | CQ160: 81 | CR160: 159 | CS160: 150 | CT160: 9 | CU160: 0
CK161: 00157 | CL161: 2014 | CM161: Kerri Barnes | CN161: Female | CO161: 388 | CP161: 65% | CQ161: 63 | CR161: 159 | CS161: 155 | CT161: 4 | CU161: 0
CK162: 00158 | CL162: 2014 | CM162: Krystal Powell | CN162: Female | CO162: 386 | CP162: 64% | CQ162: 72 | CR162: 159 | CS162: 152 | CT162: 7 | CU162: 0
CK163: 00159 | CL163: 2014 | CM163: Stacy Watson | CN163: Female | CO163: 384 | CP163: 64% | CQ163: 77 | CR163: 159 | CS163: 152 | CT163: 7 | CU163: 0
CK164: 00160 | CL164: 2014 | CM164: Kent Foster | CN164: Male | CO164: 392 | CP164: 65% | CQ164: 51 | CR164: 159 | CS164: 156 | CT164: 3 | CU164: 0
CK165: 00161 | CL165: 2014 | CM165: Rod Bryant | CN165: Male | CO165: 388 | CP165: 65% | CQ165: 63 | CR165: 159 | CS165: 151 | CT165: 8 | CU165: 0
CK166: 00162 | CL166: 2014 | CM166: Virgil Stewart | CN166: Male | CO166: 411 | CP166: 69% | CQ166: 24 | CR166: 159 | CS166: 150 | CT166: 9 | CU166: 0
CK167: 00163 | CL167: 2014 | CM167: Morris Diaz | CN167: Male | CO167: 399 | CP167: 67% | CQ167: 42 | CR167: 159 | CS167: 150 | CT167: 9 | CU167: 0
CK168: 00164 | CL168: 2014 | CM168: Preston Reed | CN168: Male | CO168: 400 | CP168: 67% | CQ168: 41 | CR168: 159 | CS168: 150 | CT168: 9 | CU168: 0
CK169: 00165 | CL169: 2014 | CM169: Brandi Coleman | CN169: Female | CO169: 330 | CP169: 55% | CQ169: 220 | CR169: 159 | CS169: 157 | CT169: 2 | CU169: 0
CK170: 00166 | CL170: 2014 | CM170: Starla Watson | CN170: Female | CO170: 366 | CP170: 61% | CQ170: 139 | CR170: 159 | CS170: 151 | CT170: 8 | CU170: 0
CK171: 00167 | CL171: 2014 | CM171: Kylie Turner | CN171: Female | CO171: 355 | CP171: 59% | CQ171: 173 | CR171: 159 | CS171: 156 | CT171: 3 | CU171: 0
CK172: 00168 | CL172: 2014 | CM172: Lora Griffin | CN172: Female | CO172: 371 | CP172: 62% | CQ172: 121 | CR172: 159 | CS172: 150 | CT172: 9 | CU172: 0
CK173: 00169 | CL173: 2014 | CM173: Wilbert Bryant | CN173: Male | CO173: 369 | CP173: 62% | CQ173: 129 | CR173: 159 | CS173: 144 | CT173: 15 | CU173: 0
CK174: 00170 | CL174: 2014 | CM174: Mona Foster | CN174: Female | CO174: 354 | CP174: 59% | CQ174: 177 | CR174: 159 | CS174: 154 | CT174: 5 | CU174: 0
CK175: 00171 | CL175: 2014 | CM175: Tami Diaz | CN175: Female | CO175: 383 | CP175: 64% | CQ175: 81 | CR175: 159 | CS175: 151 | CT175: 8 | CU175: 0
CK176: 00172 | CL176: 2014 | CM176: Norris Patterson | CN176: Male | CO176: 325 | CP176: 54% | CQ176: 222 | CR176: 159 | CS176: 148 | CT176: 11 | CU176: 0
CK177: 00173 | CL177: 2014 | CM177: Kari Wood | CN177: Female | CO177: 367 | CP177: 61% | CQ177: 133 | CR177: 159 | CS177: 148 | CT177: 11 | CU177: 0
CK178: 00174 | CL178: 2014 | CM178: Lila Reed | CN178: Female | CO178: 342 | CP178: 57% | CQ178: 209 | CR178: 159 | CS178: 146 | CT178: 13 | CU178: 0
CK179: 00175 | CL179: 2014 | CM179: Della Coleman | CN179: Female | CO179: 356 | CP179: 59% | CQ179: 167 | CR179: 159 | CS179: 145 | CT179: 14 | CU179: 0
CK180: 00176 | CL180: 2014 | CM180: Cherie Flores | CN180: Female | CO180: 379 | CP180: 63% | CQ180: 98 | CR180: 159 | CS180: 149 | CT180: 10 | CU180: 0
CK181: 00177 | CL181: 2014 | CM181: Miles Bryant | CN181: Male | CO181: 371 | CP181: 62% | CQ181: 121 | CR181: 159 | CS181: 152 | CT181: 7 | CU181: 0
CK182: 00178 | CL182: 2014 | CM182: Tania Murphy | CN182: Female | CO182: 380 | CP182: 63% | CQ182: 92 | CR182: 159 | CS182: 149 | CT182: 10 | CU182: 0
CK183: 00179 | CL183: 2014 | CM183: Kent Watson | CN183: Male | CO183: 415 | CP183: 69% | CQ183: 19 | CR183: 159 | CS183: 147 | CT183: 12 | CU183: 0
CK184: 00180 | CL184: 2014 | CM184: Rod Stewart | CN184: Male | CO184: 355 | CP184: 59% | CQ184: 173 | CR184: 159 | CS184: 153 | CT184: 6 | CU184: 0
CK185: 00181 | CL185: 2014 | CM185: Neal Foster | CN185: Male | CO185: 389 | CP185: 65% | CQ185: 60 | CR185: 159 | CS185: 153 | CT185: 6 | CU185: 0
CK186: 00182 | CL186: 2014 | CM186: Vance Diaz | CN186: Male | CO186: 408 | CP186: 68% | CQ186: 30 | CR186: 159 | CS186: 153 | CT186: 6 | CU186: 0
CK187: 00183 | CL187: 2014 | CM187: Kendra Wood | CN187: Female | CO187: 388 | CP187: 65% | CQ187: 63 | CR187: 159 | CS187: 144 | CT187: 15 | CU187: 0
CK188: 00184 | CL188: 2014 | CM188: Lana Barnes | CN188: Female | CO188: 359 | CP188: 60% | CQ188: 158 | CR188: 159 | CS188: 147 | CT188: 12 | CU188: 0
CK189: 00185 | CL189: 2014 | CM189: Reggie Powell | CN189: Male | CO189: 357 | CP189: 60% | CQ189: 162 | CR189: 159 | CS189: 151 | CT189: 8 | CU189: 0
CK190: 00186 | CL190: 2014 | CM190: Mia Griffin | CN190: Female | CO190: 411 | CP190: 69% | CQ190: 24 | CR190: 159 | CS190: 146 | CT190: 13 | CU190: 0
CK191: 00187 | CL191: 2014 | CM191: Nellie Reed | CN191: Female | CO191: 376 | CP191: 63% | CQ191: 106 | CR191: 159 | CS191: 151 | CT191: 8 | CU191: 0
CK192: 00188 | CL192: 2014 | CM192: Olga Diaz | CN192: Female | CO192: 389 | CP192: 65% | CQ192: 60 | CR192: 159 | CS192: 146 | CT192: 13 | CU192: 0
CK193: 00189 | CL193: 2014 | CM193: Sammie Turner | CN193: Male | CO193: 367 | CP193: 61% | CQ193: 133 | CR193: 159 | CS193: 148 | CT193: 11 | CU193: 0
CK194: 00190 | CL194: 2014 | CM194: Penny Flores | CN194: Female | CO194: 398 | CP194: 66% | CQ194: 43 | CR194: 159 | CS194: 145 | CT194: 14 | CU194: 0
CK195: 00191 | CL195: 2014 | CM195: Lola Bryant | CN195: Female | CO195: 344 | CP195: 57% | CQ195: 206 | CR195: 159 | CS195: 151 | CT195: 8 | CU195: 0
CK196: 00192 | CL196: 2014 | CM196: Rex Stewart | CN196: Male | CO196: 390 | CP196: 65% | CQ196: 58 | CR196: 159 | CS196: 149 | CT196: 10 | CU196: 0
CK197: 00193 | CL197: 2014 | CM197: Monte Foster | CN197: Male | CO197: 356 | CP197: 59% | CQ197: 167 | CR197: 159 | CS197: 144 | CT197: 15 | CU197: 0
CK198: 00194 | CL198: 2014 | CM198: Mindy Wood | CN198: Female | CO198: 388 | CP198: =CO198/600 -> 65% | CQ198: 63 | CR198: 159 | CS198: 151 | CT198: 8 | CU198: 0
CK199: 00195 | CL199: 2014 | CM199: Mitch Coleman | CN199: Male | CO199: 372 | CP199: 62% | CQ199: 116 | CR199: 159 | CS199: 145 | CT199: 14 | CU199: 0
CK200: 00196 | CL200: 2014 | CM200: Connor Mitchell | CN200: Male | CO200: 383 | CP200: 64% | CQ200: 81 | CR200: 159 | CS200: 154 | CT200: 5 | CU200: 0
... 2756 more rows

Sheet Data (hidden)
E1: Passing Marks | F1: 35
E2: Out of | F2: 100
A3: Year | B3: Month | C3: Grade | D3: Student code | E3: Student Name | F3: Gender | G3: Subject | H3: Marks | I3: Count | J3: Teacher Name | K3: Teacher Gender | L3: Salary | M3: Fee | N3: To Attend | O3: Attended | P3: Difference | Q3: Remark
A4: 2014 | C4: Grade 1 | D4: 00001 | E4: James Wilson | F4: Male | G4: Math | H4: 91 | I4: 1 | R4: =D4 -> 00001
A5: 2014 | C5: Grade 1 | D5: 00001 | E5: James Wilson | F5: Male | G5: Science | H5: 100 | I5: 1 | R5: =D5 -> 00001
A6: 2014 | C6: Grade 1 | D6: 00001 | E6: James Wilson | F6: Male | G6: English | H6: 76 | I6: 1 | R6: 00001
A7: 2014 | C7: Grade 1 | D7: 00001 | E7: James Wilson | F7: Male | G7: History | H7: 85 | I7: 1 | R7: 00001
A8: 2014 | C8: Grade 1 | D8: 00001 | E8: James Wilson | F8: Male | G8: Geography | H8: 94 | I8: 1 | R8: 00001
A9: 2014 | C9: Grade 1 | D9: 00001 | E9: James Wilson | F9: Male | G9: Computer | H9: 91 | I9: 1 | R9: 00001
A10: 2014 | C10: Grade 1 | D10: 00002 | E10: Emily Johnson | F10: Female | G10: Math | H10: 86 | I10: 1 | R10: 00002
A11: 2014 | C11: Grade 1 | D11: 00002 | E11: Emily Johnson | F11: Female | G11: Science | H11: 75 | I11: 1 | R11: 00002
A12: 2014 | C12: Grade 1 | D12: 00002 | E12: Emily Johnson | F12: Female | G12: English | H12: 88 | I12: 1 | R12: 00002
A13: 2014 | C13: Grade 1 | D13: 00002 | E13: Emily Johnson | F13: Female | G13: History | H13: 85 | I13: 1 | R13: 00002
A14: 2014 | C14: Grade 1 | D14: 00002 | E14: Emily Johnson | F14: Female | G14: Geography | H14: 76 | I14: 1 | R14: 00002
A15: 2014 | C15: Grade 1 | D15: 00002 | E15: Emily Johnson | F15: Female | G15: Computer | H15: 94 | I15: 1 | R15: 00002
A16: 2014 | C16: Grade 1 | D16: 00003 | E16: Michael Brown | F16: Male | G16: Math | H16: 87 | I16: 1 | R16: 00003
A17: 2014 | C17: Grade 1 | D17: 00003 | E17: Michael Brown | F17: Male | G17: Science | H17: 87 | I17: 1 | R17: 00003
A18: 2014 | C18: Grade 1 | D18: 00003 | E18: Michael Brown | F18: Male | G18: English | H18: 89 | I18: 1 | R18: 00003
A19: 2014 | C19: Grade 1 | D19: 00003 | E19: Michael Brown | F19: Male | G19: History | H19: 86 | I19: 1 | R19: 00003
A20: 2014 | C20: Grade 1 | D20: 00003 | E20: Michael Brown | F20: Male | G20: Geography | H20: 94 | I20: 1 | R20: 00003
A21: 2014 | C21: Grade 1 | D21: 00003 | E21: Michael Brown | F21: Male | G21: Computer | H21: 87 | I21: 1 | R21: 00003
A22: 2014 | C22: Grade 1 | D22: 00004 | E22: Sarah Davis | F22: Female | G22: Math | H22: 80 | I22: 1 | R22: 00004
A23: 2014 | C23: Grade 1 | D23: 00004 | E23: Sarah Davis | F23: Female | G23: Science | H23: 84 | I23: 1 | R23: 00004
A24: 2014 | C24: Grade 1 | D24: 00004 | E24: Sarah Davis | F24: Female | G24: English | H24: 94 | I24: 1 | R24: 00004
A25: 2014 | C25: Grade 1 | D25: 00004 | E25: Sarah Davis | F25: Female | G25: History | H25: 83 | I25: 1 | R25: 00004
A26: 2014 | C26: Grade 1 | D26: 00004 | E26: Sarah Davis | F26: Female | G26: Geography | H26: 83 | I26: 1 | R26: 00004
A27: 2014 | C27: Grade 1 | D27: 00004 | E27: Sarah Davis | F27: Female | G27: Computer | H27: 93 | I27: 1 | R27: 00004
A28: 2014 | C28: Grade 1 | D28: 00005 | E28: Robert Jones | F28: Male | G28: Math | H28: 93 | I28: 1 | R28: 00005
A29: 2014 | C29: Grade 1 | D29: 00005 | E29: Robert Jones | F29: Male | G29: Science | H29: 94 | I29: 1 | R29: 00005
A30: 2014 | C30: Grade 1 | D30: 00005 | E30: Robert Jones | F30: Male | G30: English | H30: 92 | I30: 1 | R30: 00005
A31: 2014 | C31: Grade 1 | D31: 00005 | E31: Robert Jones | F31: Male | G31: History | H31: 83 | I31: 1 | R31: 00005
A32: 2014 | C32: Grade 1 | D32: 00005 | E32: Robert Jones | F32: Male | G32: Geography | H32: 91 | I32: 1 | R32: 00005
A33: 2014 | C33: Grade 1 | D33: 00005 | E33: Robert Jones | F33: Male | G33: Computer | H33: 89 | I33: 1 | R33: 00005
A34: 2014 | C34: Grade 1 | D34: 00006 | E34: Jessica Miller | F34: Female | G34: Math | H34: 92 | I34: 1 | R34: 00006
A35: 2014 | C35: Grade 1 | D35: 00006 | E35: Jessica Miller | F35: Female | G35: Science | H35: 90 | I35: 1 | R35: 00006
A36: 2014 | C36: Grade 1 | D36: 00006 | E36: Jessica Miller | F36: Female | G36: English | H36: 94 | I36: 1 | R36: 00006
A37: 2014 | C37: Grade 1 | D37: 00006 | E37: Jessica Miller | F37: Female | G37: History | H37: 83 | I37: 1 | R37: 00006
A38: 2014 | C38: Grade 1 | D38: 00006 | E38: Jessica Miller | F38: Female | G38: Geography | H38: 79 | I38: 1 | R38: 00006
A39: 2014 | C39: Grade 1 | D39: 00006 | E39: Jessica Miller | F39: Female | G39: Computer | H39: 97 | I39: 1 | R39: 00006
A40: 2014 | C40: Grade 1 | D40: 00007 | E40: Jennifer Taylor | F40: Female | G40: Math | H40: 100 | I40: 1 | R40: 00007
A41: 2014 | C41: Grade 1 | D41: 00007 | E41: Jennifer Taylor | F41: Female | G41: Science | H41: 94 | I41: 1 | R41: 00007
A42: 2014 | C42: Grade 1 | D42: 00007 | E42: Jennifer Taylor | F42: Female | G42: English | H42: 96 | I42: 1 | R42: 00007
A43: 2014 | C43: Grade 1 | D43: 00007 | E43: Jennifer Taylor | F43: Female | G43: History | H43: 96 | I43: 1 | R43: 00007
A44: 2014 | C44: Grade 1 | D44: 00007 | E44: Jennifer Taylor | F44: Female | G44: Geography | H44: 83 | I44: 1 | R44: 00007
A45: 2014 | C45: Grade 1 | D45: 00007 | E45: Jennifer Taylor | F45: Female | G45: Computer | H45: 93 | I45: 1 | R45: 00007
A46: 2014 | C46: Grade 1 | D46: 00008 | E46: Christopher Anderson | F46: Male | G46: Math | H46: 100 | I46: 1 | R46: 00008
A47: 2014 | C47: Grade 1 | D47: 00008 | E47: Christopher Anderson | F47: Male | G47: Science | H47: 87 | I47: 1 | R47: 00008
A48: 2014 | C48: Grade 1 | D48: 00008 | E48: Christopher Anderson | F48: Male | G48: English | H48: 82 | I48: 1 | R48: 00008
A49: 2014 | C49: Grade 1 | D49: 00008 | E49: Christopher Anderson | F49: Male | G49: History | H49: 94 | I49: 1 | R49: 00008
A50: 2014 | C50: Grade 1 | D50: 00008 | E50: Christopher Anderson | F50: Male | G50: Geography | H50: 85 | I50: 1 | R50: 00008
A51: 2014 | C51: Grade 1 | D51: 00008 | E51: Christopher Anderson | F51: Male | G51: Computer | H51: 96 | I51: 1 | R51: 00008
A52: 2014 | C52: Grade 1 | D52: 00009 | E52: Amanda Thomas | F52: Female | G52: Math | H52: 100 | I52: 1 | R52: 00009
A53: 2014 | C53: Grade 1 | D53: 00009 | E53: Amanda Thomas | F53: Female | G53: Science | H53: 81 | I53: 1 | R53: 00009
A54: 2014 | C54: Grade 1 | D54: 00009 | E54: Amanda Thomas | F54: Female | G54: English | H54: 84 | I54: 1 | R54: 00009
A55: 2014 | C55: Grade 1 | D55: 00009 | E55: Amanda Thomas | F55: Female | G55: History | H55: 94 | I55: 1 | R55: 00009
A56: 2014 | C56: Grade 1 | D56: 00009 | E56: Amanda Thomas | F56: Female | G56: Geography | H56: 85 | I56: 1 | R56: 00009
A57: 2014 | C57: Grade 1 | D57: 00009 | E57: Amanda Thomas | F57: Female | G57: Computer | H57: 94 | I57: 1 | R57: 00009
A58: 2014 | C58: Grade 1 | D58: 00010 | E58: Matthew Jackson | F58: Male | G58: Math | H58: 99 | I58: 1 | R58: 00010
A59: 2014 | C59: Grade 1 | D59: 00010 | E59: Matthew Jackson | F59: Male | G59: Science | H59: 81 | I59: 1 | R59: 00010
A60: 2014 | C60: Grade 1 | D60: 00010 | E60: Matthew Jackson | F60: Male | G60: English | H60: 86 | I60: 1 | R60: 00010
A61: 2014 | C61: Grade 1 | D61: 00010 | E61: Matthew Jackson | F61: Male | G61: History | H61: 93 | I61: 1 | R61: 00010
A62: 2014 | C62: Grade 1 | D62: 00010 | E62: Matthew Jackson | F62: Male | G62: Geography | H62: 88 | I62: 1 | R62: 00010
A63: 2014 | C63: Grade 1 | D63: 00010 | E63: Matthew Jackson | F63: Male | G63: Computer | H63: 90 | I63: 1 | R63: 00010
A64: 2014 | C64: Grade 1 | D64: 00011 | E64: David Taylor | F64: Male | G64: Math | H64: 92 | I64: 1 | R64: 00011
A65: 2014 | C65: Grade 1 | D65: 00011 | E65: David Taylor | F65: Male | G65: Science | H65: 100 | I65: 1 | R65: 00011
A66: 2014 | C66: Grade 1 | D66: 00011 | E66: David Taylor | F66: Male | G66: English | H66: 99 | I66: 1 | R66: 00011
A67: 2014 | C67: Grade 1 | D67: 00011 | E67: David Taylor | F67: Male | G67: History | H67: 96 | I67: 1 | R67: 00011
A68: 2014 | C68: Grade 1 | D68: 00011 | E68: David Taylor | F68: Male | G68: Geography | H68: 87 | I68: 1 | R68: 00011
A69: 2014 | C69: Grade 1 | D69: 00011 | E69: David Taylor | F69: Male | G69: Computer | H69: 91 | I69: 1 | R69: =D69 -> 00011
A70: 2014 | C70: Grade 1 | D70: 00012 | E70: Daniel Harris | F70: Male | G70: Math | H70: 83 | I70: 1 | R70: 00012
A71: 2014 | C71: Grade 1 | D71: 00012 | E71: Daniel Harris | F71: Male | G71: Science | H71: 100 | I71: 1 | R71: 00012
A72: 2014 | C72: Grade 1 | D72: 00012 | E72: Daniel Harris | F72: Male | G72: English | H72: 77 | I72: 1 | R72: 00012
A73: 2014 | C73: Grade 1 | D73: 00012 | E73: Daniel Harris | F73: Male | G73: History | H73: 84 | I73: 1 | R73: 00012
A74: 2014 | C74: Grade 1 | D74: 00012 | E74: Daniel Harris | F74: Male | G74: Geography | H74: 84 | I74: 1 | R74: 00012
A75: 2014 | C75: Grade 1 | D75: 00012 | E75: Daniel Harris | F75: Male | G75: Computer | H75: 88 | I75: 1 | R75: 00012
A76: 2014 | C76: Grade 1 | D76: 00013 | E76: Elizabeth Clark | F76: Female | G76: Math | H76: 39 | I76: 1 | R76: 00013
A77: 2014 | C77: Grade 1 | D77: 00013 | E77: Elizabeth Clark | F77: Female | G77: Science | H77: 56 | I77: 1 | R77: 00013
A78: 2014 | C78: Grade 1 | D78: 00013 | E78: Elizabeth Clark | F78: Female | G78: English | H78: 47 | I78: 1 | R78: 00013
A79: 2014 | C79: Grade 1 | D79: 00013 | E79: Elizabeth Clark | F79: Female | G79: History | H79: 38 | I79: 1 | R79: 00013
A80: 2014 | C80: Grade 1 | D80: 00013 | E80: Elizabeth Clark | F80: Female | G80: Geography | H80: 52 | I80: 1 | R80: 00013
A81: 2014 | C81: Grade 1 | D81: 00013 | E81: Elizabeth Clark | F81: Female | G81: Computer | H81: 44 | I81: 1 | R81: 00013
A82: 2014 | C82: Grade 1 | D82: 00014 | E82: Ashley Lewis | F82: Female | G82: Math | H82: 35 | I82: 1 | R82: 00014
A83: 2014 | C83: Grade 1 | D83: 00014 | E83: Ashley Lewis | F83: Female | G83: Science | H83: 41 | I83: 1 | R83: 00014
A84: 2014 | C84: Grade 1 | D84: 00014 | E84: Ashley Lewis | F84: Female | G84: English | H84: 39 | I84: 1 | R84: 00014
A85: 2014 | C85: Grade 1 | D85: 00014 | E85: Ashley Lewis | F85: Female | G85: History | H85: 48 | I85: 1 | R85: 00014
A86: 2014 | C86: Grade 1 | D86: 00014 | E86: Ashley Lewis | F86: Female | G86: Geography | H86: 38 | I86: 1 | R86: 00014
A87: 2014 | C87: Grade 1 | D87: 00014 | E87: Ashley Lewis | F87: Female | G87: Computer | H87: 44 | I87: 1 | R87: 00014
A88: 2014 | C88: Grade 1 | D88: 00015 | E88: Joshua Robinson | F88: Male | G88: Math | H88: 36 | I88: 1 | R88: 00015
A89: 2014 | C89: Grade 1 | D89: 00015 | E89: Joshua Robinson | F89: Male | G89: Science | H89: 43 | I89: 1 | R89: 00015
A90: 2014 | C90: Grade 1 | D90: 00015 | E90: Joshua Robinson | F90: Male | G90: English | H90: 51 | I90: 1 | R90: 00015
A91: 2014 | C91: Grade 1 | D91: 00015 | E91: Joshua Robinson | F91: Male | G91: History | H91: 37 | I91: 1 | R91: 00015
A92: 2014 | C92: Grade 1 | D92: 00015 | E92: Joshua Robinson | F92: Male | G92: Geography | H92: 36 | I92: 1 | R92: 00015
A93: 2014 | C93: Grade 1 | D93: 00015 | E93: Joshua Robinson | F93: Male | G93: Computer | H93: 44 | I93: 1 | R93: 00015
A94: 2014 | C94: Grade 1 | D94: 00016 | E94: Kevin Wright | F94: Male | G94: Math | H94: 46 | I94: 1 | R94: 00016
A95: 2014 | C95: Grade 1 | D95: 00016 | E95: Kevin Wright | F95: Male | G95: Science | H95: 37 | I95: 1 | R95: 00016
A96: 2014 | C96: Grade 1 | D96: 00016 | E96: Kevin Wright | F96: Male | G96: English | H96: 41 | I96: 1 | R96: 00016
A97: 2014 | C97: Grade 1 | D97: 00016 | E97: Kevin Wright | F97: Male | G97: History | H97: 42 | I97: 1 | R97: 00016
A98: 2014 | C98: Grade 1 | D98: 00016 | E98: Kevin Wright | F98: Male | G98: Geography | H98: 36 | I98: 1 | R98: 00016
A99: 2014 | C99: Grade 1 | D99: 00016 | E99: Kevin Wright | F99: Male | G99: Computer | H99: 37 | I99: 1 | R99: 00016
A100: 2014 | C100: Grade 1 | D100: 00017 | E100: Timothy Scott | F100: Male | G100: Math | H100: 40 | I100: 1 | R100: 00017
A101: 2014 | C101: Grade 1 | D101: 00017 | E101: Timothy Scott | F101: Male | G101: Science | H101: 47 | I101: 1 | R101: 00017
A102: 2014 | C102: Grade 1 | D102: 00017 | E102: Timothy Scott | F102: Male | G102: English | H102: 53 | I102: 1 | R102: 00017
A103: 2014 | C103: Grade 1 | D103: 00017 | E103: Timothy Scott | F103: Male | G103: History | H103: 38 | I103: 1 | R103: 00017
A104: 2014 | C104: Grade 1 | D104: 00017 | E104: Timothy Scott | F104: Male | G104: Geography | H104: 50 | I104: 1 | R104: 00017
A105: 2014 | C105: Grade 1 | D105: 00017 | E105: Timothy Scott | F105: Male | G105: Computer | H105: 53 | I105: 1 | R105: 00017
A106: 2014 | C106: Grade 1 | D106: 00018 | E106: Jason Green | F106: Male | G106: Math | H106: 35 | I106: 1 | R106: 00018
A107: 2014 | C107: Grade 1 | D107: 00018 | E107: Jason Green | F107: Male | G107: Science | H107: 43 | I107: 1 | R107: 00018
A108: 2014 | C108: Grade 1 | D108: 00018 | E108: Jason Green | F108: Male | G108: English | H108: 35 | I108: 1 | R108: 00018
A109: 2014 | C109: Grade 1 | D109: 00018 | E109: Jason Green | F109: Male | G109: History | H109: 40 | I109: 1 | R109: 00018
A110: 2014 | C110: Grade 1 | D110: 00018 | E110: Jason Green | F110: Male | G110: Geography | H110: 42 | I110: 1 | R110: 00018
A111: 2014 | C111: Grade 1 | D111: 00018 | E111: Jason Green | F111: Male | G111: Computer | H111: 46 | I111: 1 | R111: 00018
A112: 2014 | C112: Grade 1 | D112: 00019 | E112: Jeffrey King | F112: Male | G112: Math | H112: 37 | I112: 1 | R112: 00019
A113: 2014 | C113: Grade 1 | D113: 00019 | E113: Jeffrey King | F113: Male | G113: Science | H113: 51 | I113: 1 | R113: 00019
A114: 2014 | C114: Grade 1 | D114: 00019 | E114: Jeffrey King | F114: Male | G114: English | H114: 51 | I114: 1 | R114: 00019
A115: 2014 | C115: Grade 1 | D115: 00019 | E115: Jeffrey King | F115: Male | G115: History | H115: 38 | I115: 1 | R115: 00019
A116: 2014 | C116: Grade 1 | D116: 00019 | E116: Jeffrey King | F116: Male | G116: Geography | H116: 40 | I116: 1 | R116: 00019
A117: 2014 | C117: Grade 1 | D117: 00019 | E117: Jeffrey King | F117: Male | G117: Computer | H117: 43 | I117: 1 | R117: 00019
A118: 2014 | C118: Grade 1 | D118: 00020 | E118: Michelle Adams | F118: Female | G118: Math | H118: 47 | I118: 1 | R118: 00020
A119: 2014 | C119: Grade 1 | D119: 00020 | E119: Michelle Adams | F119: Female | G119: Science | H119: 52 | I119: 1 | R119: 00020
A120: 2014 | C120: Grade 1 | D120: 00020 | E120: Michelle Adams | F120: Female | G120: English | H120: 48 | I120: 1 | R120: 00020
A121: 2014 | C121: Grade 1 | D121: 00020 | E121: Michelle Adams | F121: Female | G121: History | H121: 48 | I121: 1 | R121: 00020
A122: 2014 | C122: Grade 1 | D122: 00020 | E122: Michelle Adams | F122: Female | G122: Geography | H122: 41 | I122: 1 | R122: 00020
A123: 2014 | C123: Grade 1 | D123: 00020 | E123: Michelle Adams | F123: Female | G123: Computer | H123: 43 | I123: 1 | R123: 00020
A124: 2014 | C124: Grade 1 | D124: 00021 | E124: Brian Baker | F124: Male | G124: Math | H124: 49 | I124: 1 | R124: 00021
A125: 2014 | C125: Grade 1 | D125: 00021 | E125: Brian Baker | F125: Male | G125: Science | H125: 48 | I125: 1 | R125: 00021
A126: 2014 | C126: Grade 1 | D126: 00021 | E126: Brian Baker | F126: Male | G126: English | H126: 53 | I126: 1 | R126: 00021
A127: 2014 | C127: Grade 1 | D127: 00021 | E127: Brian Baker | F127: Male | G127: History | H127: 47 | I127: 1 | R127: 00021
A128: 2014 | C128: Grade 1 | D128: 00021 | E128: Brian Baker | F128: Male | G128: Geography | H128: 35 | I128: 1 | R128: 00021
A129: 2014 | C129: Grade 1 | D129: 00021 | E129: Brian Baker | F129: Male | G129: Computer | H129: 44 | I129: 1 | R129: 00021
A130: 2014 | C130: Grade 1 | D130: 00022 | E130: Ronald Nelson | F130: Male | G130: Math | H130: 49 | I130: 1 | R130: 00022
A131: 2014 | C131: Grade 1 | D131: 00022 | E131: Ronald Nelson | F131: Male | G131: Science | H131: 44 | I131: 1 | R131: 00022
A132: 2014 | C132: Grade 1 | D132: 00022 | E132: Ronald Nelson | F132: Male | G132: English | H132: 53 | I132: 1 | R132: 00022
A133: 2014 | C133: Grade 1 | D133: 00022 | E133: Ronald Nelson | F133: Male | G133: History | H133: 44 | I133: 1 | R133: =D133 -> 00022
A134: 2014 | C134: Grade 1 | D134: 00022 | E134: Ronald Nelson | F134: Male | G134: Geography | H134: 45 | I134: 1 | R134: 00022
A135: 2014 | C135: Grade 1 | D135: 00022 | E135: Ronald Nelson | F135: Male | G135: Computer | H135: 35 | I135: 1 | R135: 00022
A136: 2014 | C136: Grade 1 | D136: 00023 | E136: Kimberly Hall | F136: Female | G136: Math | H136: 48 | I136: 1 | R136: 00023
A137: 2014 | C137: Grade 1 | D137: 00023 | E137: Kimberly Hall | F137: Female | G137: Science | H137: 46 | I137: 1 | R137: 00023
A138: 2014 | C138: Grade 1 | D138: 00023 | E138: Kimberly Hall | F138: Female | G138: English | H138: 43 | I138: 1 | R138: 00023
A139: 2014 | C139: Grade 1 | D139: 00023 | E139: Kimberly Hall | F139: Female | G139: History | H139: 49 | I139: 1 | R139: 00023
A140: 2014 | C140: Grade 1 | D140: 00023 | E140: Kimberly Hall | F140: Female | G140: Geography | H140: 51 | I140: 1 | R140: 00023
A141: 2014 | C141: Grade 1 | D141: 00023 | E141: Kimberly Hall | F141: Female | G141: Computer | H141: 35 | I141: 1 | R141: 00023
A142: 2014 | C142: Grade 1 | D142: 00024 | E142: Amanda Allen | F142: Female | G142: Math | H142: 39 | I142: 1 | R142: 00024
A143: 2014 | C143: Grade 1 | D143: 00024 | E143: Amanda Allen | F143: Female | G143: Science | H143: 38 | I143: 1 | R143: 00024
A144: 2014 | C144: Grade 1 | D144: 00024 | E144: Amanda Allen | F144: Female | G144: English | H144: 42 | I144: 1 | R144: 00024
A145: 2014 | C145: Grade 1 | D145: 00024 | E145: Amanda Allen | F145: Female | G145: History | H145: 43 | I145: 1 | R145: 00024
A146: 2014 | C146: Grade 1 | D146: 00024 | E146: Amanda Allen | F146: Female | G146: Geography | H146: 53 | I146: 1 | R146: 00024
A147: 2014 | C147: Grade 1 | D147: 00024 | E147: Amanda Allen | F147: Female | G147: Computer | H147: 35 | I147: 1 | R147: 00024
A148: 2014 | C148: Grade 1 | D148: 00025 | E148: Stephanie Young | F148: Female | G148: Math | H148: 44 | I148: 1 | R148: 00025
A149: 2014 | C149: Grade 1 | D149: 00025 | E149: Stephanie Young | F149: Female | G149: Science | H149: 36 | I149: 1 | R149: 00025
A150: 2014 | C150: Grade 1 | D150: 00025 | E150: Stephanie Young | F150: Female | G150: English | H150: 35 | I150: 1 | R150: 00025
A151: 2014 | C151: Grade 1 | D151: 00025 | E151: Stephanie Young | F151: Female | G151: History | H151: 47 | I151: 1 | R151: 00025
A152: 2014 | C152: Grade 1 | D152: 00025 | E152: Stephanie Young | F152: Female | G152: Geography | H152: 44 | I152: 1 | R152: 00025
A153: 2014 | C153: Grade 1 | D153: 00025 | E153: Stephanie Young | F153: Female | G153: Computer | H153: 35 | I153: 1 | R153: 00025
A154: 2014 | C154: Grade 1 | D154: 00026 | E154: Edward Wright | F154: Male | G154: Math | H154: 39 | I154: 1 | R154: 00026
A155: 2014 | C155: Grade 1 | D155: 00026 | E155: Edward Wright | F155: Male | G155: Science | H155: 44 | I155: 1 | R155: 00026
A156: 2014 | C156: Grade 1 | D156: 00026 | E156: Edward Wright | F156: Male | G156: English | H156: 35 | I156: 1 | R156: 00026
A157: 2014 | C157: Grade 1 | D157: 00026 | E157: Edward Wright | F157: Male | G157: History | H157: 39 | I157: 1 | R157: 00026
A158: 2014 | C158: Grade 1 | D158: 00026 | E158: Edward Wright | F158: Male | G158: Geography | H158: 35 | I158: 1 | R158: 00026
A159: 2014 | C159: Grade 1 | D159: 00026 | E159: Edward Wright | F159: Male | G159: Computer | H159: 44 | I159: 1 | R159: 00026
A160: 2014 | C160: Grade 1 | D160: 00027 | E160: Donald Carter | F160: Male | G160: Math | H160: 39 | I160: 1 | R160: 00027
A161: 2014 | C161: Grade 1 | D161: 00027 | E161: Donald Carter | F161: Male | G161: Science | H161: 37 | I161: 1 | R161: 00027
A162: 2014 | C162: Grade 1 | D162: 00027 | E162: Donald Carter | F162: Male | G162: English | H162: 48 | I162: 1 | R162: 00027
A163: 2014 | C163: Grade 1 | D163: 00027 | E163: Donald Carter | F163: Male | G163: History | H163: 54 | I163: 1 | R163: 00027
A164: 2014 | C164: Grade 1 | D164: 00027 | E164: Donald Carter | F164: Male | G164: Geography | H164: 50 | I164: 1 | R164: 00027
A165: 2014 | C165: Grade 1 | D165: 00027 | E165: Donald Carter | F165: Male | G165: Computer | H165: 41 | I165: 1 | R165: 00027
A166: 2014 | C166: Grade 1 | D166: 00028 | E166: George Mitchell | F166: Male | G166: Math | H166: 50 | I166: 1 | R166: 00028
A167: 2014 | C167: Grade 1 | D167: 00028 | E167: George Mitchell | F167: Male | G167: Science | H167: 42 | I167: 1 | R167: 00028
A168: 2014 | C168: Grade 1 | D168: 00028 | E168: George Mitchell | F168: Male | G168: English | H168: 40 | I168: 1 | R168: 00028
A169: 2014 | C169: Grade 1 | D169: 00028 | E169: George Mitchell | F169: Male | G169: History | H169: 50 | I169: 1 | R169: 00028
A170: 2014 | C170: Grade 1 | D170: 00028 | E170: George Mitchell | F170: Male | G170: Geography | H170: 40 | I170: 1 | R170: 00028
A171: 2014 | C171: Grade 1 | D171: 00028 | E171: George Mitchell | F171: Male | G171: Computer | H171: 48 | I171: 1 | R171: 00028
A172: 2014 | C172: Grade 1 | D172: 00029 | E172: Paul Perez | F172: Male | G172: Math | H172: 41 | I172: 1 | R172: 00029
A173: 2014 | C173: Grade 1 | D173: 00029 | E173: Paul Perez | F173: Male | G173: Science | H173: 47 | I173: 1 | R173: 00029
A174: 2014 | C174: Grade 1 | D174: 00029 | E174: Paul Perez | F174: Male | G174: English | H174: 41 | I174: 1 | R174: 00029
A175: 2014 | C175: Grade 1 | D175: 00029 | E175: Paul Perez | F175: Male | G175: History | H175: 50 | I175: 1 | R175: 00029
A176: 2014 | C176: Grade 1 | D176: 00029 | E176: Paul Perez | F176: Male | G176: Geography | H176: 43 | I176: 1 | R176: 00029
A177: 2014 | C177: Grade 1 | D177: 00029 | E177: Paul Perez | F177: Male | G177: Computer | H177: 42 | I177: 1 | R177: 00029
A178: 2014 | C178: Grade 1 | D178: 00030 | E178: Mark Turner | F178: Male | G178: Math | H178: 42 | I178: 1 | R178: 00030
A179: 2014 | C179: Grade 1 | D179: 00030 | E179: Mark Turner | F179: Male | G179: Science | H179: 37 | I179: 1 | R179: 00030
A180: 2014 | C180: Grade 1 | D180: 00030 | E180: Mark Turner | F180: Male | G180: English | H180: 43 | I180: 1 | R180: 00030
A181: 2014 | C181: Grade 1 | D181: 00030 | E181: Mark Turner | F181: Male | G181: History | H181: 35 | I181: 1 | R181: 00030
A182: 2014 | C182: Grade 1 | D182: 00030 | E182: Mark Turner | F182: Male | G182: Geography | H182: 48 | I182: 1 | R182: 00030
A183: 2014 | C183: Grade 1 | D183: 00030 | E183: Mark Turner | F183: Male | G183: Computer | H183: 47 | I183: 1 | R183: 00030
A184: 2014 | C184: Grade 1 | D184: 00031 | E184: Rebecca Parker | F184: Female | G184: Math | H184: 60 | I184: 1 | R184: 00031
A185: 2014 | C185: Grade 1 | D185: 00031 | E185: Rebecca Parker | F185: Female | G185: Science | H185: 45 | I185: 1 | R185: 00031
A186: 2014 | C186: Grade 1 | D186: 00031 | E186: Rebecca Parker | F186: Female | G186: English | H186: 45 | I186: 1 | R186: 00031
A187: 2014 | C187: Grade 1 | D187: 00031 | E187: Rebecca Parker | F187: Female | G187: History | H187: 35 | I187: 1 | R187: 00031
A188: 2014 | C188: Grade 1 | D188: 00031 | E188: Rebecca Parker | F188: Female | G188: Geography | H188: 48 | I188: 1 | R188: 00031
A189: 2014 | C189: Grade 1 | D189: 00031 | E189: Rebecca Parker | F189: Female | G189: Computer | H189: 42 | I189: 1 | R189: 00031
A190: 2014 | C190: Grade 1 | D190: 00032 | E190: Laura Evans | F190: Female | G190: Math | H190: 43 | I190: 1 | R190: 00032
A191: 2014 | C191: Grade 1 | D191: 00032 | E191: Laura Evans | F191: Female | G191: Science | H191: 45 | I191: 1 | R191: 00032
A192: 2014 | C192: Grade 1 | D192: 00032 | E192: Laura Evans | F192: Female | G192: English | H192: 47 | I192: 1 | R192: 00032
A193: 2014 | C193: Grade 1 | D193: 00032 | E193: Laura Evans | F193: Female | G193: History | H193: 49 | I193: 1 | R193: 00032
A194: 2014 | C194: Grade 1 | D194: 00032 | E194: Laura Evans | F194: Female | G194: Geography | H194: 37 | I194: 1 | R194: 00032
A195: 2014 | C195: Grade 1 | D195: 00032 | E195: Laura Evans | F195: Female | G195: Computer | H195: 47 | I195: 1 | R195: 00032
A196: 2014 | C196: Grade 1 | D196: 00033 | E196: Steven Reed | F196: Male | G196: Math | H196: 41 | I196: 1 | R196: 00033
A197: 2014 | C197: Grade 1 | D197: 00033 | E197: Steven Reed | F197: Male | G197: Science | H197: 35 | I197: 1 | R197: =D197 -> 00033
A198: 2014 | C198: Grade 1 | D198: 00033 | E198: Steven Reed | F198: Male | G198: English | H198: 35 | I198: 1 | R198: 00033
A199: 2014 | C199: Grade 1 | D199: 00033 | E199: Steven Reed | F199: Male | G199: History | H199: 39 | I199: 1 | R199: 00033
A200: 2014 | C200: Grade 1 | D200: 00033 | E200: Steven Reed | F200: Male | G200: Geography | H200: 50 | I200: 1 | R200: 00033
... 4300 more rows
